{"text_format":"1","workbook":"xlsx","n_sheets":4,"sheets":["Home","Barrier Data","Projects","Model"],"not_rendered":{"charts":0,"images":2,"macros":1,"external_links":0,"defined_names":108,"comments":2,"pivot_tables":0},"unopened":[],"bounds":{"document_bytes":16777216,"sheet_cells":100000,"rows_first":2000,"rows_last":500,"rows_between":2000,"halvings":0,"cell_chars":16384,"cell_head_chars":4096},"cells_cut":0,"cells_raw":0,"read":"whole","date_system":"1900"}

{"sheet":"Home","index":0,"n_rows":0,"n_cols":0,"rows_kept":0,"cut":false,"hidden":false,"merged":[]}

{"sheet":"Barrier Data","index":1,"n_rows":677,"n_cols":27,"rows_kept":677,"cut":false,"hidden":false,"merged":[]}
[]
[]
[]
[]
[]
["BARID","CATCHMENT","DSID","USHAB","PRE_PASS","PRE_HPOW","PRE_WSTORE","BARID","DSID","HABTOTAL","z","zdwn","zup","hp","ws","match","CHECK","invalid"]
[null,null,null,null,null,null,null,{"$f":"\"Bar_\"&A7","v":"Bar_"},{"$f":"IF(C7=\"NA\",\"NA\",\"Bar_\"&C7)","v":"Bar_"},{"$f":"VLOOKUP(B7,$Z$8:$AA$1048576,2,FALSE)","v":{"$error":"#N/A"}},null,null,null,null,null,{"$f":"MATCH(C7,$A$8:$A$1048576,0)","v":{"$error":"#N/A"}},{"$f":"IF(C7=\"NA\",\"\",IF(ISNUMBER(P7),\"\",\"Error: ID not found\"))","v":"Error: ID not found"},{"$f":"IF(C7=\"NA\",0,IF(ISNUMBER(P7),0,1))","v":1},null,null,null,null,null,null,null,"CATCH","HAB"]
["Dummy","TestCatchment","NA",0.7,1,0,0,{"$f":"\"Bar_\"&A8","v":"Bar_Dummy"},{"$f":"IF(C8=\"NA\",\"NA\",\"Bar_\"&C8)","v":"NA"},{"$f":"VLOOKUP(B8,$Z$8:$AA$1048576,2,FALSE)","v":11.399999999999999},1,0.7,9.4749999999999996,0,0,{"$f":"MATCH(C8,$A$8:$A$1048576,0)","v":{"$error":"#N/A"}},{"$f":"IF(C8=\"NA\",\"\",IF(ISNUMBER(P8),\"\",\"Error: ID not found\"))","v":""},{"$f":"IF(C8=\"NA\",0,IF(ISNUMBER(P8),0,1))","v":0},null,null,null,null,null,null,null,"TestCatchment",11.399999999999999]
["A","TestCatchment","Dummy",2.1,0.4,0,0,"Bar_A","Bar_Dummy",11.399999999999999,1,2.8,8.7750000000000004,0,0,1,"",0]
["B","TestCatchment","A",0.9,0,0,0,"Bar_B","Bar_A",11.399999999999999,1,5.625,3.91,0,0,2,"",0]
["C","TestCatchment","B",4.3,0.3,0,0,"Bar_C","Bar_B",11.399999999999999,1,9.9250000000000007,3.01,0,0,3,"",0]
["D","TestCatchment","A",1.7,0.5,0,0,"Bar_D","Bar_A",11.399999999999999,0.5,5.0549999999999997,1.925,0,0,2,"",0]
["E","TestCatchment","D",1.2,0.2,0,0,"Bar_E","Bar_D",11.399999999999999,0.1,2.3010000000000002,0,0,0,5,"",0]
["F","TestCatchment","D",0.5,0.1,0,0,"Bar_F","Bar_D",11.399999999999999,0.5,5.5549999999999997,0.45,0,0,5,"",0]
[null,null,null,null,null,null,null,null,null,null,0,0.14485000000000001,1.431E-3,0,0]
[null,null,null,null,null,null,null,null,null,null,0,0.165716,0,0,0]
[null,null,null,null,null,null,null,null,null,null,0,1.4600500000000001,0.192244,0,0]
[null,null,null,null,null,null,null,null,null,null,0,25.017399999999999,7.5498099999999999,0,0]
[null,null,null,null,null,null,null,null,null,null,0.18,8.6828400000000006,0.56512399999999996,0,0]
[null,null,null,null,null,null,null,null,null,null,0,11.392300000000001,0,0,0]
[null,null,null,null,null,null,null,null,null,null,0,0.54950600000000005,0.20470099999999999,0,0]
[null,null,null,null,null,null,null,null,null,null,0,0.71565699999999999,0,0,0]
[null,null,null,null,null,null,null,null,null,null,0,9.4574000000000005E-2,0,0,0]
[null,null,null,null,null,null,null,null,null,null,0,1.2796E-2,0,63,0]
[null,null,null,null,null,null,null,null,null,null,0,0.85370100000000004,9.1901800000000006E-2,0,0]
[null,null,null,null,null,null,null,null,null,null,0,0.53448099999999998,0.21365700000000001,0,0]
[null,null,null,null,null,null,null,null,null,null,0,8.7859300000000005,3.2764199999999999,0,0]
[null,null,null,null,null,null,null,null,null,null,0.19500000000000001,12.163,2.5211100000000002,0,0]
[null,null,null,null,null,null,null,null,null,null,1.6199999999999999E-2,0.80608599999999997,6.9040299999999999E-2,0,0]
[null,null,null,null,null,null,null,null,null,null,5.8320000000000004E-3,2.3526400000000001,0.74248099999999995,0,0]
[null,null,null,null,null,null,null,null,null,null,0,1.95208,1.6506E-2,0,0]
[null,null,null,null,null,null,null,null,null,null,0,2.8832E-2,0,1,0]
[null,null,null,null,null,null,null,null,null,null,0,2.6013000000000001E-2,0,0,0]
[null,null,null,null,null,null,null,null,null,null,0,1.4066E-2,0,0,0]
[null,null,null,null,null,null,null,null,null,null,0,7.2403999999999996E-2,0,0,0]
[null,null,null,null,null,null,null,null,null,null,0,2.5246999999999999E-2,0,0,0]
[null,null,null,null,null,null,null,null,null,null,0,7.4158000000000002E-2,0,0,0]
[null,null,null,null,null,null,null,null,null,null,0,0.66272299999999995,0,0,0]
[null,null,null,null,null,null,null,null,null,null,0,2.4971E-2,0,0,0]
[null,null,null,null,null,null,null,null,null,null,0,0.23854500000000001,0.108764,0,0]
[null,null,null,null,null,null,null,null,null,null,0,2.5687999999999999E-2,9.2479999999999993E-3,0,0]
[null,null,null,null,null,null,null,null,null,null,0,4.7728100000000002E-2,6.9030000000000003E-3,0,0]
[null,null,null,null,null,null,null,null,null,null,0,8.7138499999999994E-2,1.5665999999999999E-2,0,0]
[null,null,null,null,null,null,null,null,null,null,0,4.94075E-2,8.1919999999999996E-3,0,0]
[null,null,null,null,null,null,null,null,null,null,0,0.29954799999999998,8.7521000000000002E-2,0,0]
[null,null,null,null,null,null,null,null,null,null,0,5.3043E-2,0,0,0]
[null,null,null,null,null,null,null,null,null,null,0,6.3220999999999999E-2,1.7080999999999999E-2,0,0]
[null,null,null,null,null,null,null,null,null,null,0,3.4868999999999997E-2,0,0,0]
[null,null,null,null,null,null,null,null,null,null,0,3.7941000000000003E-2,0,0,0]
[null,null,null,null,null,null,null,null,null,null,0,0.15675900000000001,0,0,0]
[null,null,null,null,null,null,null,null,null,null,0,0.86787099999999995,0,0,0]
[null,null,null,null,null,null,null,null,null,null,0,1.2433099999999999,1.8085799999999999E-2,0,0]
[null,null,null,null,null,null,null,null,null,null,0,9.1769800000000004,0,0,0]
[null,null,null,null,null,null,null,null,null,null,0,0.218943,0,0,0]
[null,null,null,null,null,null,null,null,null,null,0,1.8729,0,0,0]
[null,null,null,null,null,null,null,null,null,null,0,0.16686599999999999,0,0,0]
[null,null,null,null,null,null,null,null,null,null,0,9.5579900000000002,0,0,0]
[null,null,null,null,null,null,null,null,null,null,0,1.2097800000000001,0,0,0]
[null,null,null,null,null,null,null,null,null,null,0,1.46987,0.52399399999999996,0,0]
[null,null,null,null,null,null,null,null,null,null,0,0.99792999999999998,9.5547499999999994E-2,0,0]
[null,null,null,null,null,null,null,null,null,null,0,0.49695699999999998,0.122447,0,0]
[null,null,null,null,null,null,null,null,null,null,0,2.5738099999999999,2.10528,0,0]
[null,null,null,null,null,null,null,null,null,null,0,0.46853299999999998,0,0,0]
[null,null,null,null,null,null,null,null,null,null,0,6.0325999999999998E-2,0,0,0]
[null,null,null,null,null,null,null,null,null,null,0,1.9473800000000001,0,6,0]
[null,null,null,null,null,null,null,null,null,null,0,1.1242E-2,0,0,0]
[null,null,null,null,null,null,null,null,null,null,0,18.944099999999999,0,0,0]
[null,null,null,null,null,null,null,null,null,null,0,3.0353500000000002,0,5,0]
[null,null,null,null,null,null,null,null,null,null,0,2.5868000000000002,0,0,0]
[null,null,null,null,null,null,null,null,null,null,0,0.85697299999999998,0.16325500000000001,0,0]
[null,null,null,null,null,null,null,null,null,null,0,2.9602E-2,0,0,0]
[null,null,null,null,null,null,null,null,null,null,0,7.8799400000000006E-2,0.31990600000000002,0,0]
[null,null,null,null,null,null,null,null,null,null,0,3.8143199999999999,1.56752,0,0]
[null,null,null,null,null,null,null,null,null,null,0,0.28880299999999998,0,0,0]
[null,null,null,null,null,null,null,null,null,null,0,3.1225900000000001E-2,3.2729999999999999E-3,0,0]
[null,null,null,null,null,null,null,null,null,null,0,1.4895499999999999,0,0,0]
[null,null,null,null,null,null,null,null,null,null,0,0.41173599999999999,0,0,0]
[null,null,null,null,null,null,null,null,null,null,0,0.34372000000000003,0,0,0]
[null,null,null,null,null,null,null,null,null,null,0,7.0981000000000002E-2,0,0,0]
[null,null,null,null,null,null,null,null,null,null,0,-1.5892999999999999,0,0,0]
[null,null,null,null,null,null,null,null,null,null,0,-0.86569600000000002,0,0,0]
[null,null,null,null,null,null,null,null,null,null,0,1.1291899999999999,0,0,0]
[null,null,null,null,null,null,null,null,null,null,0,20.380099999999999,0,33,0]
[null,null,null,null,null,null,null,null,null,null,0,4.5188100000000002,0,0,0]
[null,null,null,null,null,null,null,null,null,null,0,1.4563E-2,0,0,0]
[null,null,null,null,null,null,null,null,null,null,0,1.9007E-2,0,0,0]
[null,null,null,null,null,null,null,null,null,null,0,7.6182E-2,0,0,0]
[null,null,null,null,null,null,null,null,null,null,0,0.45932600000000001,4.6250399999999997E-2,0,0]
[null,null,null,null,null,null,null,null,null,null,0,2.5104000000000001E-2,0,0,0]
[null,null,null,null,null,null,null,null,null,null,0,0.51882499999999998,0,0,0]
[null,null,null,null,null,null,null,null,null,null,0,4.3121099999999997,0,0,0]
[null,null,null,null,null,null,null,null,null,null,0,0.50447600000000004,0.121127,0,0]
[null,null,null,null,null,null,null,null,null,null,0,9.8974200000000003,0.269202,0,0]
[null,null,null,null,null,null,null,null,null,null,0,8.5961800000000004,0,0,0]
[null,null,null,null,null,null,null,null,null,null,0,5.2654199999999998E-2,8.6350400000000001E-3,0,0]
[null,null,null,null,null,null,null,null,null,null,0,7.9699999999999997E-3,0,0,0]
[null,null,null,null,null,null,null,null,null,null,0,0.233483,0,0,0]
[null,null,null,null,null,null,null,null,null,null,0,0.19745799999999999,3.7159200000000003E-2,0,0]
[null,null,null,null,null,null,null,null,null,null,0,7.4269100000000005E-2,3.2544200000000002E-2,0,0]
[null,null,null,null,null,null,null,null,null,null,0,0.12135700000000001,2.6647799999999999E-2,0,0]
[null,null,null,null,null,null,null,null,null,null,0,4.5474199999999999E-2,3.3700599999999998E-3,0,0]
[null,null,null,null,null,null,null,null,null,null,0,2.9208499999999998E-2,1.03131E-2,0,0]
[null,null,null,null,null,null,null,null,null,null,0,0.116706,2.9778200000000001E-2,0,0]
[null,null,null,null,null,null,null,null,null,null,0,3.8089600000000001E-2,9.7005700000000004E-3,0,0]
[null,null,null,null,null,null,null,null,null,null,0,0.16830200000000001,3.4413199999999998E-2,0,0]
[null,null,null,null,null,null,null,null,null,null,0,0.11282300000000001,1.5601E-2,0,0]
[null,null,null,null,null,null,null,null,null,null,0,0.20991799999999999,0,0,0]
[null,null,null,null,null,null,null,null,null,null,0,10.1068,0,0,0]
[null,null,null,null,null,null,null,null,null,null,0,0.65504600000000002,0,13,0]
[null,null,null,null,null,null,null,null,null,null,0,0.272233,0.107443,0,0]
[null,null,null,null,null,null,null,null,null,null,0,1.2348300000000001,3.8000399999999997E-2,0,0]
[null,null,null,null,null,null,null,null,null,null,0,2.8828499999999999,0,0,0]
[null,null,null,null,null,null,null,null,null,null,0,0.62324100000000004,1.09023E-2,0,0]
[null,null,null,null,null,null,null,null,null,null,0,0.30474699999999999,5.1991999999999997E-2,0,0]
[null,null,null,null,null,null,null,null,null,null,0,0.195489,2.45604E-2,0,0]
[null,null,null,null,null,null,null,null,null,null,0,5.8426999999999998,2.0977800000000002,0,0]
[null,null,null,null,null,null,null,null,null,null,0,1.4691700000000001,0.28648800000000002,0,0]
[null,null,null,null,null,null,null,null,null,null,0,1.02491,0,0,0]
[null,null,null,null,null,null,null,null,null,null,0,2.2841499999999999,0.20002200000000001,0,0]
[null,null,null,null,null,null,null,null,null,null,0,0.14838599999999999,0,0,0]
[null,null,null,null,null,null,null,null,null,null,0,-2.2397,0,0,0]
[null,null,null,null,null,null,null,null,null,null,0,0.153166,0.12035800000000001,0,0]
[null,null,null,null,null,null,null,null,null,null,0,2.1807E-2,0,0,0]
[null,null,null,null,null,null,null,null,null,null,0,3.2807999999999997E-2,0.13376299999999999,0,0]
[null,null,null,null,null,null,null,null,null,null,0,1.9403E-2,0,0,0]
[null,null,null,null,null,null,null,null,null,null,0,5.4866400000000003E-2,5.0795E-2,0,0]
[null,null,null,null,null,null,null,null,null,null,0,1.0869599999999999,0.209872,0,0]
[null,null,null,null,null,null,null,null,null,null,0,6.8310999999999997E-2,0,0,0]
[null,null,null,null,null,null,null,null,null,null,0,5.3020000000000003E-3,0,117,0]
[null,null,null,null,null,null,null,null,null,null,0,9.2523099999999996,0,0,0]
[null,null,null,null,null,null,null,null,null,null,0,0.78117000000000003,0.139075,0,0]
[null,null,null,null,null,null,null,null,null,null,0,16.2454,0,43,0]
[null,null,null,null,null,null,null,null,null,null,0,12.9847,0,0,0]
[null,null,null,null,null,null,null,null,null,null,0,2.8983999999999999E-2,0,0,0]
[null,null,null,null,null,null,null,null,null,null,0,4.1075499999999998,0,0,0]
[null,null,null,null,null,null,null,null,null,null,0,0.62005399999999999,0.110028,0,0]
[null,null,null,null,null,null,null,null,null,null,0,0.28618500000000002,6.4454499999999998E-2,0,0]
[null,null,null,null,null,null,null,null,null,null,0,0.18922600000000001,0,0,0]
[null,null,null,null,null,null,null,null,null,null,0,7.4265100000000004,2.0116100000000001,0,0]
[null,null,null,null,null,null,null,null,null,null,0,1.2095E-2,0,0,0]
[null,null,null,null,null,null,null,null,null,null,0,-0.305614,2.67204,0,0]
[null,null,null,null,null,null,null,null,null,null,0,3.6071399999999998,0,0,0]
[null,null,null,null,null,null,null,null,null,null,0,1.0326599999999999,6.4208000000000001E-2,0,0]
[null,null,null,null,null,null,null,null,null,null,0,17.7865,0,0,0]
[null,null,null,null,null,null,null,null,null,null,0,-0.27729799999999999,0,0,0]
[null,null,null,null,null,null,null,null,null,null,0,6.6950000000000004E-3,0,0,0]
[null,null,null,null,null,null,null,null,null,null,0,6.27433,9.7905800000000003,0,0]
[null,null,null,null,null,null,null,null,null,null,0,0.67158200000000001,0.476408,2,0]
[null,null,null,null,null,null,null,null,null,null,0,2.75105E-2,0.17405499999999999,0,0]
[null,null,null,null,null,null,null,null,null,null,0,5.6757000000000002E-2,0,0,0]
[null,null,null,null,null,null,null,null,null,null,0,0.128779,8.1169999999999992E-3,0,0]
[null,null,null,null,null,null,null,null,null,null,0,0.16187299999999999,0,0,0]
[null,null,null,null,null,null,null,null,null,null,0,0.44693500000000003,7.28158E-2,0,0]
[null,null,null,null,null,null,null,null,null,null,0,0.41864299999999999,9.2033100000000007E-2,0,0]
[null,null,null,null,null,null,null,null,null,null,0,9.9974599999999997E-2,2.5953500000000001E-2,0,0]
[null,null,null,null,null,null,null,null,null,null,0,1.4520500000000001,0,0,0]
[null,null,null,null,null,null,null,null,null,null,0,-0.297987,0.53631700000000004,0,0]
[null,null,null,null,null,null,null,null,null,null,0,0.37522100000000003,1.5699000000000001E-2,0,0]
[null,null,null,null,null,null,null,null,null,null,0,4.60276,0,0,0]
[null,null,null,null,null,null,null,null,null,null,0,-3.3655200000000001,0,4,0]
[null,null,null,null,null,null,null,null,null,null,0,1.5696399999999999,0,0,0]
[null,null,null,null,null,null,null,null,null,null,0,9.5557199999999995E-2,1.3483E-2,0,0]
[null,null,null,null,null,null,null,null,null,null,0,0.13544700000000001,1.68852E-2,0,0]
[null,null,null,null,null,null,null,null,null,null,0,0.31969799999999998,5.7139599999999999E-2,0,0]
[null,null,null,null,null,null,null,null,null,null,0,0.88209400000000004,0,0,0]
[null,null,null,null,null,null,null,null,null,null,0,1.3589100000000001,4.1375000000000002E-2,0,0]
[null,null,null,null,null,null,null,null,null,null,0,5.6050000000000003E-2,0,0,0]
[null,null,null,null,null,null,null,null,null,null,0,12.766400000000001,0,0,0]
[null,null,null,null,null,null,null,null,null,null,0,8.3685500000000008,0,0,0]
[null,null,null,null,null,null,null,null,null,null,0,0.41967199999999999,0,0,0]
[null,null,null,null,null,null,null,null,null,null,0,9.8258999999999999E-2,0,0,0]
[null,null,null,null,null,null,null,null,null,null,0,0.49857000000000001,0,0,0]
[null,null,null,null,null,null,null,null,null,null,0,2.7190500000000002,0,0,0]
[null,null,null,null,null,null,null,null,null,null,0,6.1772999999999998,0,65,0]
[null,null,null,null,null,null,null,null,null,null,0,0.57930499999999996,0,0,0]
[null,null,null,null,null,null,null,null,null,null,0,0.32659500000000002,0,0,0]
[null,null,null,null,null,null,null,null,null,null,0,9.6282800000000002,0,0,0]
[null,null,null,null,null,null,null,null,null,null,0,0.30835200000000001,5.9845299999999997E-2,0,0]
[null,null,null,null,null,null,null,null,null,null,0,9.2303800000000005E-2,2.6668799999999999E-2,0,0]
[null,null,null,null,null,null,null,null,null,null,0,1.90771,0,0,0]
[null,null,null,null,null,null,null,null,null,null,0,0.14497699999999999,1.6545000000000001E-2,0,0]
[null,null,null,null,null,null,null,null,null,null,0,0.70506000000000002,0,0,0]
[null,null,null,null,null,null,null,null,null,null,0,0.34657700000000002,5.5073200000000003E-2,0,0]
[null,null,null,null,null,null,null,null,null,null,0,0.42484300000000003,8.2903299999999999E-2,0,0]
[null,null,null,null,null,null,null,null,null,null,0,2.2377799999999999,0.42156900000000003,0,0]
[null,null,null,null,null,null,null,null,null,null,0,0,9.0196999999999999E-2,0,0]
[null,null,null,null,null,null,null,null,null,null,0,1.2383E-2,0,0,0]
[null,null,null,null,null,null,null,null,null,null,0,0.43895099999999998,0,2,0]
[null,null,null,null,null,null,null,null,null,null,0,0.82703199999999999,0.106057,0,0]
[null,null,null,null,null,null,null,null,null,null,0,10.445499999999999,0.62214199999999997,0,0]
[null,null,null,null,null,null,null,null,null,null,0,2.0935899999999998,0.13305,0,0]
[null,null,null,null,null,null,null,null,null,null,0,1.4838,0.62919700000000001,0,0]
[null,null,null,null,null,null,null,null,null,null,0,1.1235999999999999,1.4785E-2,0,0]
[null,null,null,null,null,null,null,null,null,null,0,6.10771,0,0,0]
[null,null,null,null,null,null,null,null,null,null,0,5.4487699999999997,1.59572,0,0]
[null,null,null,null,null,null,null,null,null,null,0,0.18013199999999999,1.6167999999999998E-2,0,0]
[null,null,null,null,null,null,null,null,null,null,0,2.8382999999999999E-2,0,0,0]
[null,null,null,null,null,null,null,null,null,null,0,3.2591000000000002E-2,0,0,0]
[null,null,null,null,null,null,null,null,null,null,0,0.17833399999999999,0,0,0]
[null,null,null,null,null,null,null,null,null,null,0,0.11058999999999999,0,0,0]
[null,null,null,null,null,null,null,null,null,null,0,0.18897,1.6660999999999999E-2,0,0]
[null,null,null,null,null,null,null,null,null,null,0,4.2745400000000003E-2,3.9644900000000002E-3,0,0]
[null,null,null,null,null,null,null,null,null,null,0,0.17063800000000001,0,0,0]
[null,null,null,null,null,null,null,null,null,null,0,0.52713299999999996,0.11348800000000001,0,0]
[null,null,null,null,null,null,null,null,null,null,0,0.35007899999999997,4.8221E-2,0,0]
[null,null,null,null,null,null,null,null,null,null,0,0.43041800000000002,0,0,0]
[null,null,null,null,null,null,null,null,null,null,0,0.50998399999999999,0,0,0]
[null,null,null,null,null,null,null,null,null,null,0,3.1775899999999999,0,0,0]
[null,null,null,null,null,null,null,null,null,null,0,7.8338099999999997,0,13,0]
[null,null,null,null,null,null,null,null,null,null,0,1.1786799999999999,-6.1772999999999998,0,0]
[null,null,null,null,null,null,null,null,null,null,0,-0.53763000000000005,0,0,0]
[null,null,null,null,null,null,null,null,null,null,0,0.146013,0,0,0]
[null,null,null,null,null,null,null,null,null,null,0,0.13128699999999999,1.7496000000000001E-2,0,0]
[null,null,null,null,null,null,null,null,null,null,0,0.21315500000000001,2.39277E-2,0,0]
[null,null,null,null,null,null,null,null,null,null,0,0.55356899999999998,6.4247899999999997E-2,0,0]
[null,null,null,null,null,null,null,null,null,null,0,1.1855599999999999,3.2549000000000002E-2,0,0]
[null,null,null,null,null,null,null,null,null,null,0,0.53256599999999998,1.2360299999999999E-2,0,0]
[null,null,null,null,null,null,null,null,null,null,0,0.116193,2.7299199999999998E-3,0,0]
[null,null,null,null,null,null,null,null,null,null,0,3.1148700000000001E-2,1.6559999999999999E-3,0,0]
[null,null,null,null,null,null,null,null,null,null,0,2.0506500000000001,0,0,0]
[null,null,null,null,null,null,null,null,null,null,0,5.1920799999999998,1.05522,0,0]
[null,null,null,null,null,null,null,null,null,null,0,-0.163634,0.20594100000000001,0,0]
[null,null,null,null,null,null,null,null,null,null,0,7.8580000000000004E-3,0,0,0]
[null,null,null,null,null,null,null,null,null,null,0,3.4451299999999998,0,0,0]
[null,null,null,null,null,null,null,null,null,null,0,0.413053,6.7070000000000003E-3,0,0]
[null,null,null,null,null,null,null,null,null,null,0,7.4055999999999997E-2,0,0,0]
[null,null,null,null,null,null,null,null,null,null,0,1.9167000000000001,0,0,0]
[null,null,null,null,null,null,null,null,null,null,0,0.212562,1.9756800000000001E-2,0,0]
[null,null,null,null,null,null,null,null,null,null,0,0.46997,4.0576000000000001E-2,0,0]
[null,null,null,null,null,null,null,null,null,null,0,0.37356699999999998,3.3636100000000002E-2,0,0]
[null,null,null,null,null,null,null,null,null,null,0,0.36444500000000002,3.2240199999999997E-2,0,0]
[null,null,null,null,null,null,null,null,null,null,0,0.20061799999999999,1.7811899999999999E-2,0,0]
[null,null,null,null,null,null,null,null,null,null,0,0.19167899999999999,1.75213E-2,0,0]
[null,null,null,null,null,null,null,null,null,null,0,0.18689900000000001,1.6797300000000001E-2,0,0]
[null,null,null,null,null,null,null,null,null,null,0,0.22472,2.0314100000000002E-2,0,0]
[null,null,null,null,null,null,null,null,null,null,0,5.5932299999999997E-2,0,0,0]
[null,null,null,null,null,null,null,null,null,null,0,0.702762,1.25638E-2,0,0]
[null,null,null,null,null,null,null,null,null,null,0,0.16020899999999999,2.2756599999999998E-2,0,0]
[null,null,null,null,null,null,null,null,null,null,0,0.30113000000000001,2.31091E-2,0,0]
[null,null,null,null,null,null,null,null,null,null,0,2.8349899999999999,0.25475100000000001,0,0]
[null,null,null,null,null,null,null,null,null,null,0,0.19975799999999999,3.9304600000000002E-2,0,0]
[null,null,null,null,null,null,null,null,null,null,0,1.3872100000000001,0.12711800000000001,0,0]
[null,null,null,null,null,null,null,null,null,null,0,0.382994,1.3554099999999999E-2,0,0]
[null,null,null,null,null,null,null,null,null,null,0,0.228628,1.9135800000000001E-2,0,0]
[null,null,null,null,null,null,null,null,null,null,0,0.53481000000000001,3.9629600000000001E-2,0,0]
[null,null,null,null,null,null,null,null,null,null,0,0.21760699999999999,2.10593E-2,0,0]
[null,null,null,null,null,null,null,null,null,null,0,0.28177200000000002,2.53426E-2,0,0]
[null,null,null,null,null,null,null,null,null,null,0,0.197688,1.8890400000000002E-2,0,0]
[null,null,null,null,null,null,null,null,null,null,0,0.360267,3.0372799999999998E-2,0,0]
[null,null,null,null,null,null,null,null,null,null,0,0.29496800000000001,0.11562699999999999,0,0]
[null,null,null,null,null,null,null,null,null,null,0,1.1327199999999999,0,2,0]
[null,null,null,null,null,null,null,null,null,null,0,4.03871,0,0,0]
[null,null,null,null,null,null,null,null,null,null,0,1.5386899999999999,5.4159999999999998E-3,0,0]
[null,null,null,null,null,null,null,null,null,null,0,0.18754299999999999,0,3,0]
[null,null,null,null,null,null,null,null,null,null,0,0.234656,0,0,0]
[null,null,null,null,null,null,null,null,null,null,0,0.23095399999999999,7.0042199999999999E-2,0,0]
[null,null,null,null,null,null,null,null,null,null,0,0.28500399999999998,2.3888699999999999E-2,0,0]
[null,null,null,null,null,null,null,null,null,null,0,0.68682699999999997,5.2058E-2,0,0]
[null,null,null,null,null,null,null,null,null,null,0,0.42494700000000002,4.2240800000000002E-2,0,0]
[null,null,null,null,null,null,null,null,null,null,0,0.163468,0,0,0]
[null,null,null,null,null,null,null,null,null,null,0,4.2004000000000001,0,0,0]
[null,null,null,null,null,null,null,null,null,null,0,0.28583500000000001,0,0,0]
[null,null,null,null,null,null,null,null,null,null,0,1.4151100000000001,0,0,0]
[null,null,null,null,null,null,null,null,null,null,0,0.59406700000000001,5.3791699999999998E-2,0,0]
[null,null,null,null,null,null,null,null,null,null,0,0.134217,2.3883399999999999E-2,0,0]
[null,null,null,null,null,null,null,null,null,null,0,0.33605699999999999,0,0,0]
[null,null,null,null,null,null,null,null,null,null,0,0.156277,0,0,0]
[null,null,null,null,null,null,null,null,null,null,0,5.9984299999999999,0,0,0]
[null,null,null,null,null,null,null,null,null,null,0,0.229605,0,0,0]
[null,null,null,null,null,null,null,null,null,null,0,0,0,5,0]
[null,null,null,null,null,null,null,null,null,null,0,1.2400000000000001E-4,0,0,0]
[null,null,null,null,null,null,null,null,null,null,0,1.2294799999999999,0.22070400000000001,0,0]
[null,null,null,null,null,null,null,null,null,null,0,1.0842400000000001,5.5661200000000001E-2,0,0]
[null,null,null,null,null,null,null,null,null,null,0,5.6251600000000002,0,0,0]
[null,null,null,null,null,null,null,null,null,null,0,1.2973999999999999E-2,0,0,0]
[null,null,null,null,null,null,null,null,null,null,0,2.39005,0,0,0]
[null,null,null,null,null,null,null,null,null,null,0,2.0583000000000001E-2,0,0,0]
[null,null,null,null,null,null,null,null,null,null,0,1.0345999999999999E-2,0,0,0]
[null,null,null,null,null,null,null,null,null,null,0,2.9388999999999998E-2,0,0,0]
[null,null,null,null,null,null,null,null,null,null,0,1.5089E-2,0,0,0]
[null,null,null,null,null,null,null,null,null,null,0,1.1923E-2,0,0,0]
[null,null,null,null,null,null,null,null,null,null,0,4.5760000000000002E-3,0,0,0]
[null,null,null,null,null,null,null,null,null,null,0,1.4970000000000001E-3,0,0,0]
[null,null,null,null,null,null,null,null,null,null,0,0.46499299999999999,0,0,0]
[null,null,null,null,null,null,null,null,null,null,0,0.92327499999999996,0.151555,0,0]
[null,null,null,null,null,null,null,null,null,null,0,6.3475700000000002,0,90,0]
[null,null,null,null,null,null,null,null,null,null,0,4.5689599999999997,0,0,0]
[null,null,null,null,null,null,null,null,null,null,0,1.3583099999999999,0.42124899999999998,0,0]
[null,null,null,null,null,null,null,null,null,null,0,0.28551100000000001,0,0,0]
[null,null,null,null,null,null,null,null,null,null,0,0.31053900000000001,2.7656E-2,0,0]
[null,null,null,null,null,null,null,null,null,null,0,0.86519100000000004,0.134328,0,0]
[null,null,null,null,null,null,null,null,null,null,0,6.0008999999999997,0,0,0]
[null,null,null,null,null,null,null,null,null,null,0,0.285437,4.5731099999999997E-2,0,0]
[null,null,null,null,null,null,null,null,null,null,0,0.15825900000000001,6.7196699999999998E-2,0,0]
[null,null,null,null,null,null,null,null,null,null,0,0.107018,6.5026799999999996E-2,0,0]
[null,null,null,null,null,null,null,null,null,null,0,0.33680900000000003,0.13058600000000001,0,0]
[null,null,null,null,null,null,null,null,null,null,0,4.61137,0.85760999999999998,0,0]
[null,null,null,null,null,null,null,null,null,null,0,1.22689,0.23922099999999999,0,0]
[null,null,null,null,null,null,null,null,null,null,0,0.70650500000000005,0.23336299999999999,0,0]
[null,null,null,null,null,null,null,null,null,null,0,0.19350999999999999,2.6048000000000002E-2,0,0]
[null,null,null,null,null,null,null,null,null,null,0,0.20275799999999999,0,0,0]
[null,null,null,null,null,null,null,null,null,null,0,1.8070900000000001,0,0,0]
[null,null,null,null,null,null,null,null,null,null,0,0.96309100000000003,1.60993E-2,0,0]
[null,null,null,null,null,null,null,null,null,null,0,0.33579100000000001,2.8858000000000002E-2,0,0]
[null,null,null,null,null,null,null,null,null,null,0,-0.70394699999999999,0,0,0]
[null,null,null,null,null,null,null,null,null,null,0,-0.52252399999999999,6.5311999999999995E-2,0,0]
[null,null,null,null,null,null,null,null,null,null,0,3.6325000000000003E-2,0,0,0]
[null,null,null,null,null,null,null,null,null,null,0,-0.70972900000000005,-3.16107,0,0]
[null,null,null,null,null,null,null,null,null,null,0,7.6438699999999997,0,1,0]
[null,null,null,null,null,null,null,null,null,null,0,0.86518499999999998,0,0,0]
[null,null,null,null,null,null,null,null,null,null,0,0.34939999999999999,0,0,0]
[null,null,null,null,null,null,null,null,null,null,0,0.72252799999999995,0.125114,0,0]
[null,null,null,null,null,null,null,null,null,null,0,1.1274599999999999,0,0,0]
[null,null,null,null,null,null,null,null,null,null,0,0.62729100000000004,0.12582399999999999,0,0]
[null,null,null,null,null,null,null,null,null,null,0,6.1031300000000002,0,0,0]
[null,null,null,null,null,null,null,null,null,null,0,0.43563099999999999,0.104936,0,0]
[null,null,null,null,null,null,null,null,null,null,0,0.10226399999999999,2.98836E-2,0,0]
[null,null,null,null,null,null,null,null,null,null,0,0.276669,1.30273E-2,0,0]
[null,null,null,null,null,null,null,null,null,null,0,0.31597799999999998,0,0,0]
[null,null,null,null,null,null,null,null,null,null,0,0.72071099999999999,8.5463999999999998E-2,0,0]
[null,null,null,null,null,null,null,null,null,null,0,0.49565999999999999,1.0131100000000001E-2,0,0]
[null,null,null,null,null,null,null,null,null,null,0,0.104809,1.70291E-3,0,0]
[null,null,null,null,null,null,null,null,null,null,0,2.3404700000000001E-2,5.7899999999999998E-4,0,0]
[null,null,null,null,null,null,null,null,null,null,0,0.77371400000000001,0,0,0]
[null,null,null,null,null,null,null,null,null,null,0,9.3576099999999993,0,0,0]
[null,null,null,null,null,null,null,null,null,null,0,1.5129300000000001,1.95E-4,0,0]
[null,null,null,null,null,null,null,null,null,null,0,8.3437300000000008,0,0,0]
[null,null,null,null,null,null,null,null,null,null,0,2.5657399999999999,1.38924,0,0]
[null,null,null,null,null,null,null,null,null,null,0,7.5825699999999996E-2,6.8793599999999996E-2,0,0]
[null,null,null,null,null,null,null,null,null,null,0,0.31045600000000001,0.32855699999999999,0,0]
[null,null,null,null,null,null,null,null,null,null,0,1.9418500000000001,0.117867,0,0]
[null,null,null,null,null,null,null,null,null,null,0,0.481269,0,0,0]
[null,null,null,null,null,null,null,null,null,null,0,0.14632800000000001,2.8523199999999999E-2,0,0]
[null,null,null,null,null,null,null,null,null,null,0,0.49412099999999998,8.4715299999999993E-2,0,0]
[null,null,null,null,null,null,null,null,null,null,0,0.40464299999999997,0.110786,0,0]
[null,null,null,null,null,null,null,null,null,null,0,0.50450600000000001,0.21196699999999999,0,0]
[null,null,null,null,null,null,null,null,null,null,0,7.3599999999999999E-2,0,0,0]
[null,null,null,null,null,null,null,null,null,null,0,5.0006099999999998E-2,1.0187999999999999E-2,0,0]
[null,null,null,null,null,null,null,null,null,null,0,6.0291900000000002E-2,6.4086799999999999E-3,0,0]
[null,null,null,null,null,null,null,null,null,null,0,0.17533099999999999,4.8111399999999999E-2,0,0]
[null,null,null,null,null,null,null,null,null,null,0,3.1690999999999998,0,0,0]
[null,null,null,null,null,null,null,null,null,null,0,0.227326,0,73,0]
[null,null,null,null,null,null,null,null,null,null,0,2.4317299999999999,0.19653300000000001,0,0]
[null,null,null,null,null,null,null,null,null,null,0,0.23358100000000001,1.39384E-2,0,0]
[null,null,null,null,null,null,null,null,null,null,0,5.0872199999999999E-2,4.3715200000000003E-3,0,0]
[null,null,null,null,null,null,null,null,null,null,0,9.7588099999999997E-2,1.7094999999999999E-2,0,0]
[null,null,null,null,null,null,null,null,null,null,0,1.8226,0.201264,0,0]
[null,null,null,null,null,null,null,null,null,null,0,1.2225999999999999,0.169263,0,0]
[null,null,null,null,null,null,null,null,null,null,0,1.96997,6.0744399999999997E-2,0,0]
[null,null,null,null,null,null,null,null,null,null,0,9.7999999999999997E-5,0,0,0]
[null,null,null,null,null,null,null,null,null,null,0,1.1088100000000001,0,25,0]
[null,null,null,null,null,null,null,null,null,null,0,2.2615699999999999,0.268399,0,0]
[null,null,null,null,null,null,null,null,null,null,0,3.2529999999999998E-3,0,0,0]
[null,null,null,null,null,null,null,null,null,null,0,4.6813700000000003,0,4,0]
[null,null,null,null,null,null,null,null,null,null,0,1.96845,0.48656500000000003,0,0]
[null,null,null,null,null,null,null,null,null,null,0,2.26268,0.70827099999999998,0,0]
[null,null,null,null,null,null,null,null,null,null,0,1.5751900000000001,0,0,0]
[null,null,null,null,null,null,null,null,null,null,0,7.1672500000000001,0,0,0]
[null,null,null,null,null,null,null,null,null,null,0,7.9020999999999994E-2,0,0,0]
[null,null,null,null,null,null,null,null,null,null,0,0.104842,0,0,0]
[null,null,null,null,null,null,null,null,null,null,0,0.37189899999999998,0,0,0]
[null,null,null,null,null,null,null,null,null,null,0,0.916327,0,0,0]
[null,null,null,null,null,null,null,null,null,null,0,1.27189,0.25223200000000001,0,0]
[null,null,null,null,null,null,null,null,null,null,0,0.21865599999999999,8.4799299999999994E-2,0,0]
[null,null,null,null,null,null,null,null,null,null,0,0.18471099999999999,3.6175899999999997E-2,0,0]
[null,null,null,null,null,null,null,null,null,null,0,0.43074200000000001,5.7670300000000001E-2,0,0]
[null,null,null,null,null,null,null,null,null,null,0,0.87782099999999996,6.1593700000000001E-2,0,0]
[null,null,null,null,null,null,null,null,null,null,0,0.59872700000000001,8.3696599999999996E-2,0,0]
[null,null,null,null,null,null,null,null,null,null,0,2.20106,0,0,0]
[null,null,null,null,null,null,null,null,null,null,0,2.46679,0.305614,0,0]
[null,null,null,null,null,null,null,null,null,null,0,0.48615199999999997,9.7079999999999996E-3,0,0]
[null,null,null,null,null,null,null,null,null,null,0,0.92374500000000004,0,0,0]
[null,null,null,null,null,null,null,null,null,null,0,7.6578600000000003,0,0,0]
[null,null,null,null,null,null,null,null,null,null,0,0.61875899999999995,9.4273899999999994E-2,0,0]
[null,null,null,null,null,null,null,null,null,null,0,0.82016100000000003,0.29222799999999999,0,0]
[null,null,null,null,null,null,null,null,null,null,0,0.152949,6.3281400000000002E-2,0,0]
[null,null,null,null,null,null,null,null,null,null,0,2.8583999999999998E-2,0,0,0]
[null,null,null,null,null,null,null,null,null,null,0,0.103044,0,0,0]
[null,null,null,null,null,null,null,null,null,null,0,1.3470000000000001E-3,0,0,0]
[null,null,null,null,null,null,null,null,null,null,0,16.0701,0,15,0]
[null,null,null,null,null,null,null,null,null,null,0,2.8829600000000002,-4.8358400000000001,0,0]
[null,null,null,null,null,null,null,null,null,null,0,0.15428600000000001,0,1,0]
[null,null,null,null,null,null,null,null,null,null,0,6.0331999999999999,0,0,0]
[null,null,null,null,null,null,null,null,null,null,0,2.3904800000000002,0,0,0]
[null,null,null,null,null,null,null,null,null,null,0,3.6918700000000002,0.94279400000000002,0,0]
[null,null,null,null,null,null,null,null,null,null,0,3.1111,0.185977,0,0]
[null,null,null,null,null,null,null,null,null,null,0,10.3461,0,0,0]
[null,null,null,null,null,null,null,null,null,null,0,3.5667999999999998E-2,0,0,0]
[null,null,null,null,null,null,null,null,null,null,0,1.1614800000000001,0.23223199999999999,0,0]
[null,null,null,null,null,null,null,null,null,null,0,8.6138099999999995E-2,5.9821199999999998E-2,0,0]
[null,null,null,null,null,null,null,null,null,null,0,5.9451799999999999E-2,1.9506099999999998E-2,0,0]
[null,null,null,null,null,null,null,null,null,null,0,9.8660300000000006E-2,2.1685699999999999E-2,0,0]
[null,null,null,null,null,null,null,null,null,null,0,1.0787500000000001,0.20449000000000001,0,0]
[null,null,null,null,null,null,null,null,null,null,0,-8.6543999999999996E-2,0,0,0]
[null,null,null,null,null,null,null,null,null,null,0,0,0,0,0]
[null,null,null,null,null,null,null,null,null,null,0,9.9214999999999998E-2,0,0,0]
[null,null,null,null,null,null,null,null,null,null,0,-5.8401000000000002E-2,0,0,0]
[null,null,null,null,null,null,null,null,null,null,0,-3.1480000000000001E-2,0,0,0]
[null,null,null,null,null,null,null,null,null,null,0,0.33680199999999999,0,5,0]
[null,null,null,null,null,null,null,null,null,null,0,0.416016,2.9783299999999999E-2,0,0]
[null,null,null,null,null,null,null,null,null,null,0,7.3571200000000001,1.3258300000000001,0,0]
[null,null,null,null,null,null,null,null,null,null,0,0.64709099999999997,0,0,0]
[null,null,null,null,null,null,null,null,null,null,0,-1.29661,1.6270100000000001,0,0]
[null,null,null,null,null,null,null,null,null,null,0,10.6447,11.516999999999999,0,0]
[null,null,null,null,null,null,null,null,null,null,0,-7.1065000000000003E-2,0,0,0]
[null,null,null,null,null,null,null,null,null,null,0,-1.9177799999999998E-2,0,100,0]
[null,null,null,null,null,null,null,null,null,null,0,-6.9677199999999999,0,0,0]
[null,null,null,null,null,null,null,null,null,null,0,2.6895699999999998,0,0,0]
[null,null,null,null,null,null,null,null,null,null,0,8.1150000000000007E-3,0,0,0]
[null,null,null,null,null,null,null,null,null,null,0,-2.9327100000000002,0.18898100000000001,0,0]
[null,null,null,null,null,null,null,null,null,null,0,9.3787699999999994,0,0,0]
[null,null,null,null,null,null,null,null,null,null,0,3.7359599999999999,0,0,0]
[null,null,null,null,null,null,null,null,null,null,0,0.37758700000000001,0,0,0]
[null,null,null,null,null,null,null,null,null,null,0,1.45106,0,0,0]
[null,null,null,null,null,null,null,null,null,null,0,0.108475,0,0,0]
[null,null,null,null,null,null,null,null,null,null,0,0.34722999999999998,0,0,0]
[null,null,null,null,null,null,null,null,null,null,0,0.40271499999999999,0,0,0]
[null,null,null,null,null,null,null,null,null,null,0,0.49533300000000002,0,0,0]
[null,null,null,null,null,null,null,null,null,null,0,30.265799999999999,0.113024,0,0]
[null,null,null,null,null,null,null,null,null,null,0,154.10599999999999,0,0,0]
[null,null,null,null,null,null,null,null,null,null,0,0.19369500000000001,0,0,0]
[null,null,null,null,null,null,null,null,null,null,0,7.6128000000000001E-2,0,0,0]
[null,null,null,null,null,null,null,null,null,null,0,1.93557,1.15259,0,0]
[null,null,null,null,null,null,null,null,null,null,0,0.30212600000000001,6.12399E-2,0,0]
[null,null,null,null,null,null,null,null,null,null,0,0.63763899999999996,9.2541600000000002E-2,0,0]
[null,null,null,null,null,null,null,null,null,null,0,4.6872400000000001,0,0,0]
[null,null,null,null,null,null,null,null,null,null,0,6.3047500000000003,0,0,0]
[null,null,null,null,null,null,null,null,null,null,0,0.614286,9.8261500000000002E-2,0,0]
[null,null,null,null,null,null,null,null,null,null,0,6.3784999999999998,0,8,0]
[null,null,null,null,null,null,null,null,null,null,0,0.49506,0,0,0]
[null,null,null,null,null,null,null,null,null,null,0,0.101746,3.0458300000000001E-2,0,0]
[null,null,null,null,null,null,null,null,null,null,0,6.5381999999999996E-2,0,0,0]
[null,null,null,null,null,null,null,null,null,null,0,6.3546000000000005E-2,0,0,0]
[null,null,null,null,null,null,null,null,null,null,0,1.58229,0,1,0]
[null,null,null,null,null,null,null,null,null,null,0,3.6354500000000001,0,0,0]
[null,null,null,null,null,null,null,null,null,null,0,9.7036300000000004,0.165933,0,0]
[null,null,null,null,null,null,null,null,null,null,0,2.6070799999999998,0.16231400000000001,0,0]
[null,null,null,null,null,null,null,null,null,null,0,7.1934399999999996E-2,2.0534799999999999E-2,0,0]
[null,null,null,null,null,null,null,null,null,null,0,0.14291000000000001,1.8693299999999999E-2,0,0]
[null,null,null,null,null,null,null,null,null,null,0,7.8911999999999996E-2,0,0,0]
[null,null,null,null,null,null,null,null,null,null,0,1.29758,0,0,0]
[null,null,null,null,null,null,null,null,null,null,0,1.0808,0,0,0]
[null,null,null,null,null,null,null,null,null,null,0.09,3.4668600000000001,0,0,0]
[null,null,null,null,null,null,null,null,null,null,0,1.3786,0,72,0]
[null,null,null,null,null,null,null,null,null,null,0,0.40972500000000001,6.6461000000000006E-2,0,0]
[null,null,null,null,null,null,null,null,null,null,0,0.78955200000000003,2.3626000000000001E-2,0,0]
[null,null,null,null,null,null,null,null,null,null,0,6.9290000000000003E-3,0,43,0]
[null,null,null,null,null,null,null,null,null,null,0,3.5007199999999998,0.63663899999999995,0,0]
[null,null,null,null,null,null,null,null,null,null,0,0.628853,0,1,0]
[null,null,null,null,null,null,null,null,null,null,0.19500000000000001,6.4883699999999997,6.0444999999999999E-2,0,0]
[null,null,null,null,null,null,null,null,null,null,0,16.513100000000001,0,0,0]
[null,null,null,null,null,null,null,null,null,null,0,5.3321800000000001,0,0,0]
[null,null,null,null,null,null,null,null,null,null,0,5.8770999999999997E-2,0,0,0]
[null,null,null,null,null,null,null,null,null,null,0,7.7534999999999998,2.9008500000000002,0,0]
[null,null,null,null,null,null,null,null,null,null,0,0.367614,0,0,0]
[null,null,null,null,null,null,null,null,null,null,0,0.25654300000000002,0,0,0]
[null,null,null,null,null,null,null,null,null,null,0,0.11218400000000001,0,0,0]
[null,null,null,null,null,null,null,null,null,null,0,0.16095000000000001,0,1,0]
[null,null,null,null,null,null,null,null,null,null,0,6.5630999999999995E-2,0,0,0]
[null,null,null,null,null,null,null,null,null,null,0,8.8713E-2,0,0,0]
[null,null,null,null,null,null,null,null,null,null,0,0.15135000000000001,0,0,0]
[null,null,null,null,null,null,null,null,null,null,0,6.7525000000000002E-2,0,0,0]
[null,null,null,null,null,null,null,null,null,null,0,8.6208999999999994E-2,0,0,0]
[null,null,null,null,null,null,null,null,null,null,0,7.5295000000000001E-2,0,0,0]
[null,null,null,null,null,null,null,null,null,null,0,6.9561999999999999E-2,0,0,0]
[null,null,null,null,null,null,null,null,null,null,0,17.2502,0,0,0]
[null,null,null,null,null,null,null,null,null,null,0,1.1865300000000001,0,0,0]
[null,null,null,null,null,null,null,null,null,null,0,1.75728,0,0,0]
[null,null,null,null,null,null,null,null,null,null,0,7.6421200000000002,4.9673800000000004,0,0]
[null,null,null,null,null,null,null,null,null,null,0,1.7405E-2,0,0,0]
[null,null,null,null,null,null,null,null,null,null,0,2.23095,0,0,0]
[null,null,null,null,null,null,null,null,null,null,0.19500000000000001,6.2242199999999999,0,0,0]
[null,null,null,null,null,null,null,null,null,null,0,0.24362900000000001,0,0,0]
[null,null,null,null,null,null,null,null,null,null,0,11.6335,1.3671800000000001,0,0]
[null,null,null,null,null,null,null,null,null,null,0,-2.6664E-2,0,0,0]
[null,null,null,null,null,null,null,null,null,null,0,0.63045600000000002,0.206371,0,0]
[null,null,null,null,null,null,null,null,null,null,0,0.43921399999999999,0.171956,0,0]
[null,null,null,null,null,null,null,null,null,null,0,0.58621000000000001,0,0,0]
[null,null,null,null,null,null,null,null,null,null,0,0.101384,0,0,0]
[null,null,null,null,null,null,null,null,null,null,0,1.4869E-2,0,0,0]
[null,null,null,null,null,null,null,null,null,null,0,0.90690199999999999,0,0,0]
[null,null,null,null,null,null,null,null,null,null,0,4.3743700000000003E-2,6.9899999999999997E-3,0,0]
[null,null,null,null,null,null,null,null,null,null,0,7.6009200000000003,0,0,0]
[null,null,null,null,null,null,null,null,null,null,0,4.0501000000000002E-2,0,0,0]
[null,null,null,null,null,null,null,null,null,null,0,5.5727000000000002,0,0,0]
[null,null,null,null,null,null,null,null,null,null,0,0.63436400000000004,0.100343,0,0]
[null,null,null,null,null,null,null,null,null,null,0,0.26553199999999999,0,0,0]
[null,null,null,null,null,null,null,null,null,null,0,0.19492799999999999,1.9222E-2,0,0]
[null,null,null,null,null,null,null,null,null,null,0,0.119035,0,0,0]
[null,null,null,null,null,null,null,null,null,null,0,4.2022300000000001,0,0,0]
[null,null,null,null,null,null,null,null,null,null,0,0.17566300000000001,9.3431E-2,0,0]
[null,null,null,null,null,null,null,null,null,null,0,8.2430299999999998E-2,9.3939999999999996E-3,0,0]
[null,null,null,null,null,null,null,null,null,null,0,9.1625999999999999E-2,0,0,0]
[null,null,null,null,null,null,null,null,null,null,0,3.4778000000000003E-2,0,0,0]
[null,null,null,null,null,null,null,null,null,null,0,0.24332999999999999,0,0,0]
[null,null,null,null,null,null,null,null,null,null,0,0.669377,0,0,0]
[null,null,null,null,null,null,null,null,null,null,0,0.19633800000000001,1.5696999999999999E-2,0,0]
[null,null,null,null,null,null,null,null,null,null,0,7.0813000000000001E-2,0,0,0]
[null,null,null,null,null,null,null,null,null,null,0,2.08318,1.8500300000000001E-2,0,0]
[null,null,null,null,null,null,null,null,null,null,0,0.56764099999999995,7.4514300000000006E-2,0,0]
[null,null,null,null,null,null,null,null,null,null,0,0.73613899999999999,0.18445400000000001,0,0]
[null,null,null,null,null,null,null,null,null,null,0,0.19503300000000001,0,0,0]
[null,null,null,null,null,null,null,null,null,null,0,1.67096,-3.92191,0,0]
[null,null,null,null,null,null,null,null,null,null,0,45.602600000000002,0,0,0]
[null,null,null,null,null,null,null,null,null,null,0,1.7492700000000001,0,0,0]
[null,null,null,null,null,null,null,null,null,null,0,0.193631,0,0,0]
[null,null,null,null,null,null,null,null,null,null,0,0.31748100000000001,7.3001399999999994E-2,0,0]
[null,null,null,null,null,null,null,null,null,null,0,3.6493899999999999,0,0,0]
[null,null,null,null,null,null,null,null,null,null,0,0.110781,0,0,0]
[null,null,null,null,null,null,null,null,null,null,0,28.357600000000001,0,214,0]
[null,null,null,null,null,null,null,null,null,null,0,0.27301300000000001,0,0,0]
[null,null,null,null,null,null,null,null,null,null,0,2.4200599999999999,0,0,0]
[null,null,null,null,null,null,null,null,null,null,0,0.127752,0,58,0]
[null,null,null,null,null,null,null,null,null,null,0,1.2881999999999999E-2,-9.7455300000000005,0,0]
[null,null,null,null,null,null,null,null,null,null,0,1.6981200000000001,0.33036599999999999,0,0]
[null,null,null,null,null,null,null,null,null,null,0,2.0201E-2,0,0,0]
[null,null,null,null,null,null,null,null,null,null,0,8.4650000000000003E-3,0,0,0]
[null,null,null,null,null,null,null,null,null,null,0,3.6751299999999998,1.206E-3,0,0]
[null,null,null,null,null,null,null,null,null,null,0,1.9005399999999999,0,27,0]
[null,null,null,null,null,null,null,null,null,null,0,6.3239999999999998E-3,0,0,0]
[null,null,null,null,null,null,null,null,null,null,0,6.7679999999999997E-3,0,0,0]
[null,null,null,null,null,null,null,null,null,null,0,8.5699999999999995E-3,0,0,0]
[null,null,null,null,null,null,null,null,null,null,0,4.6283599999999998,0,0,0]
[null,null,null,null,null,null,null,null,null,null,0,0.74907500000000005,5.8247199999999999E-2,0,0]
[null,null,null,null,null,null,null,null,null,null,0,9.8033999999999996E-2,0,0,0]
[null,null,null,null,null,null,null,null,null,null,0,5.2800000000000004E-4,0,0,0]
[null,null,null,null,null,null,null,null,null,null,0,5.0557999999999999E-2,0,0,0]
[null,null,null,null,null,null,null,null,null,null,0,1.63883,0.29157899999999998,0,0]
[null,null,null,null,null,null,null,null,null,null,0,3.0672600000000001,0,0,0]
[null,null,null,null,null,null,null,null,null,null,0,1.5859300000000001,0,0,0]
[null,null,null,null,null,null,null,null,null,null,0,2.1227399999999998,0,0,0]
[null,null,null,null,null,null,null,null,null,null,0,0,2.6664E-2,0,0]
[null,null,null,null,null,null,null,null,null,null,0,0.12342500000000001,0,0,0]
[null,null,null,null,null,null,null,null,null,null,0,0.99054900000000001,0,0,0]
[null,null,null,null,null,null,null,null,null,null,0,1.15943,0,0,0]
[null,null,null,null,null,null,null,null,null,null,0,0,0.16070300000000001,0,0]
[null,null,null,null,null,null,null,null,null,null,0,-0.76084499999999999,-2.8829600000000002,0,0]
[null,null,null,null,null,null,null,null,null,null,0,3.7648100000000002,0.66131399999999996,0,0]
[null,null,null,null,null,null,null,null,null,null,0,0,4.2361999999999997E-2,0,0]
[null,null,null,null,null,null,null,null,null,null,0,-0.21724099999999999,4.2880599999999998E-2,0,0]
[null,null,null,null,null,null,null,null,null,null,0,2.4291399999999999,-5.4872899999999998,86,0]
[null,null,null,null,null,null,null,null,null,null,0,2.1779199999999999,0,0,0]
[null,null,null,null,null,null,null,null,null,null,0,2.722E-3,0,0,0]
[null,null,null,null,null,null,null,null,null,null,0,0,-0.29496800000000001,0,0]
[null,null,null,null,null,null,null,null,null,null,0,0.37548399999999998,0,0,0]
[null,null,null,null,null,null,null,null,null,null,0,0.113539,0,0,0]
[null,null,null,null,null,null,null,null,null,null,0,0.155113,0,0,0]
[null,null,null,null,null,null,null,null,null,null,0,1.0460799999999999,0.22075600000000001,0,0]
[null,null,null,null,null,null,null,null,null,null,0,0.24782399999999999,5.19154E-2,0,0]
[null,null,null,null,null,null,null,null,null,null,0,1.0376799999999999,0.20691100000000001,0,0]
[null,null,null,null,null,null,null,null,null,null,0,0.146235,6.3684500000000005E-2,0,0]
[null,null,null,null,null,null,null,null,null,null,0,0.136184,2.3155499999999999E-2,0,0]
[null,null,null,null,null,null,null,null,null,null,0,1.34253,0.51954900000000004,0,0]
[null,null,null,null,null,null,null,null,null,null,0,0.43167800000000001,0,0,0]
[null,null,null,null,null,null,null,null,null,null,0,0.43217800000000001,7.3421E-2,0,0]
[null,null,null,null,null,null,null,null,null,null,0,3.0868099999999998,0,0,0]
[null,null,null,null,null,null,null,null,null,null,0,0.95742300000000002,2.6908000000000001E-2,0,0]
[null,null,null,null,null,null,null,null,null,null,0,1.22576,0,21,0]
[null,null,null,null,null,null,null,null,null,null,0,1.25529,0.75995400000000002,0,0]
[null,null,null,null,null,null,null,null,null,null,0,0.99695299999999998,0.117503,0,0]
[null,null,null,null,null,null,null,null,null,null,0,5.8943099999999999,0,5,0]
[null,null,null,null,null,null,null,null,null,null,0,2.6595200000000001,0,0,0]
[null,null,null,null,null,null,null,null,null,null,0,0.117533,0,32,0]
[null,null,null,null,null,null,null,null,null,null,0,5.3838699999999999,0,0,0]
[null,null,null,null,null,null,null,null,null,null,0,0.203151,5.1657000000000002E-2,0,0]
[null,null,null,null,null,null,null,null,null,null,0,1.35555,-0.110072,0,0]
[null,null,null,null,null,null,null,null,null,null,0,0.36603599999999997,0,0,0]
[null,null,null,null,null,null,null,null,null,null,0,1.9151400000000001,0.36202499999999999,0,0]
[null,null,null,null,null,null,null,null,null,null,0,6.5182500000000001,0,0,0]
[null,null,null,null,null,null,null,null,null,null,0,6.8928799999999999,9.7850999999999994E-2,0,0]
[null,null,null,null,null,null,null,null,null,null,0,0.35822799999999999,7.2931499999999996E-2,0,0]
[null,null,null,null,null,null,null,null,null,null,0,0.62837299999999996,0.13253100000000001,0,0]
[null,null,null,null,null,null,null,null,null,null,0,0.34854200000000002,0,0,0]
[null,null,null,null,null,null,null,null,null,null,0,0.28531699999999999,0,0,0]
[null,null,null,null,null,null,null,null,null,null,0,1.0707599999999999,5.1495600000000002E-2,0,0]
[null,null,null,null,null,null,null,null,null,null,0,0.609433,0,0,0]
[null,null,null,null,null,null,null,null,null,null,0,9.9046999999999996E-2,0,0,0]
[null,null,null,null,null,null,null,null,null,null,0,0.93123699999999998,3.359E-3,0,0]
[null,null,null,null,null,null,null,null,null,null,0,0.41948600000000003,7.5426499999999994E-2,0,0]
[null,null,null,null,null,null,null,null,null,null,0,0.11765299999999999,4.1420400000000003E-2,0,0]
[null,null,null,null,null,null,null,null,null,null,0,0.165579,9.4760999999999998E-2,0,0]
[null,null,null,null,null,null,null,null,null,null,0,1.70099,0.34331800000000001,0,0]
[null,null,null,null,null,null,null,null,null,null,0,3.2064699999999999,0,0,0]
[null,null,null,null,null,null,null,null,null,null,0,1.97499,0.69741500000000001,0,0]
[null,null,null,null,null,null,null,null,null,null,0,0.104799,0.276341,0,0]
[null,null,null,null,null,null,null,null,null,null,0,9.6106200000000003E-2,6.0083600000000001E-2,0,0]
[null,null,null,null,null,null,null,null,null,null,0,0.32989400000000002,2.9556300000000001E-2,0,0]
[null,null,null,null,null,null,null,null,null,null,0,7.4450000000000002E-3,-0.297987,0,0]
[null,null,null,null,null,null,null,null,null,null,0,0.80340800000000001,0.23938400000000001,0,0]
[null,null,null,null,null,null,null,null,null,null,0,6.3295500000000002,1.2072400000000001,0,0]
[null,null,null,null,null,null,null,null,null,null,0,33.949800000000003,0,0,0]
[null,null,null,null,null,null,null,null,null,null,0,1.0183899999999999,0.135906,0,0]
[null,null,null,null,null,null,null,null,null,null,0,0.58543199999999995,0.24873200000000001,0,0]
[null,null,null,null,null,null,null,null,null,null,0,0.62842299999999995,0,0,0]
[null,null,null,null,null,null,null,null,null,null,0,4.2816200000000002,0.81265500000000002,0,0]
[null,null,null,null,null,null,null,null,null,null,0,9.9141999999999994E-2,0,0,0]
[null,null,null,null,null,null,null,null,null,null,0,1.2765500000000001,0,0,0]
[null,null,null,null,null,null,null,null,null,null,0.42249999999999999,22.332000000000001,11.3422,0,0]
[null,null,null,null,null,null,null,null,null,null,0,4.8296200000000002,0,0,0]
[null,null,null,null,null,null,null,null,null,null,0,3.4276499999999999,2.8319999999999999,0,0]
[null,null,null,null,null,null,null,null,null,null,0,0.66456899999999997,0,0,0]
[null,null,null,null,null,null,null,null,null,null,0,6.9245200000000002,0,0,0]
[null,null,null,null,null,null,null,null,null,null,0,5.8210600000000001,0,0,0]
[null,null,null,null,null,null,null,null,null,null,0,0.112514,2.91493E-2,0,0]
[null,null,null,null,null,null,null,null,null,null,0,0.15226200000000001,1.5832100000000002E-2,0,0]
[null,null,null,null,null,null,null,null,null,null,0,0.51395199999999996,9.5082599999999993E-3,0,0]
[null,null,null,null,null,null,null,null,null,null,0,6.2701000000000007E-2,0,0,0]
[null,null,null,null,null,null,null,null,null,null,0,1.1440900000000001,0,0,0]
[null,null,null,null,null,null,null,null,null,null,0,5.4944E-2,0,0,0]
[null,null,null,null,null,null,null,null,null,null,0,3.5539399999999999,0,0,0]
[null,null,null,null,null,null,null,null,null,null,0,11.238,0,23,0]
[null,null,null,null,null,null,null,null,null,null,0,2.1263800000000002,0,0,0]
[null,null,null,null,null,null,null,null,null,null,0,4.2809999999999997,0,0,0]
[null,null,null,null,null,null,null,null,null,null,0,2.0853000000000002,0.77262200000000003,0,0]
[null,null,null,null,null,null,null,null,null,null,0,1.7259500000000001,2.4750000000000002E-3,0,0]
[null,null,null,null,null,null,null,null,null,null,0,1.2849699999999999,0,0,0]
[null,null,null,null,null,null,null,null,null,null,0,6.51417,0.58553599999999995,0,0]
[null,null,null,null,null,null,null,null,null,null,0,6.8321000000000007E-2,0,0,0]
[null,null,null,null,null,null,null,null,null,null,0,2.13184,0,0,0]
[null,null,null,null,null,null,null,null,null,null,0,1.6345200000000001E-2,1.0269999999999999E-3,1,0]
[null,null,null,null,null,null,null,null,null,null,0,5.4835700000000001E-2,2.6644300000000002E-3,0,0]
[null,null,null,null,null,null,null,null,null,null,0,0.29176299999999999,0,0,0]
[null,null,null,null,null,null,null,null,null,null,0,0.306286,0,0,0]
[null,null,null,null,null,null,null,null,null,null,0,6.6982400000000002,2.5975799999999998,0,0]
[null,null,null,null,null,null,null,null,null,null,0,43.676400000000001,0,50,0]
[null,null,null,null,null,null,null,null,null,null,0,2.1433499999999999,0,0,0]
[null,null,null,null,null,null,null,null,null,null,0.65,20.934100000000001,13.103999999999999,0,0]
[null,null,null,null,null,null,null,null,null,null,0,15.9185,0,0,0]
[null,null,null,null,null,null,null,null,null,null,0,7.8525900000000002,0,0,0]
[null,null,null,null,null,null,null,null,null,null,0,0.301313,5.4364200000000001E-2,0,0]
[null,null,null,null,null,null,null,null,null,null,0,1.3943000000000001,0.260432,0,0]
[null,null,null,null,null,null,null,null,null,null,0,6.39018,0.110037,0,0]
[null,null,null,null,null,null,null,null,null,null,0,3.5766800000000001,0,0,0]
[null,null,null,null,null,null,null,null,null,null,0,9.0769599999999997,6.0000000000000001E-3,0,0]
[null,null,null,null,null,null,null,null,null,null,0,4.8474199999999996,0,0,0]
[null,null,null,null,null,null,null,null,null,null,0,0.57428500000000005,0,0,0]
[null,null,null,null,null,null,null,null,null,null,0,-6.5060200000000004,0,0,0]
[null,null,null,null,null,null,null,null,null,null,0,23.892099999999999,12.879,0,0]
[null,null,null,null,null,null,null,null,null,null,0,0.28087600000000001,6.6658099999999998E-2,0,0]
[null,null,null,null,null,null,null,null,null,null,0,6.6920500000000001,0,0,0]
[null,null,null,null,null,null,null,null,null,null,0,33.379199999999997,143.423,10,0]
[null,null,null,null,null,null,null,null,null,null,0,-0.20594100000000001,0,0,0]
[null,null,null,null,null,null,null,null,null,null,0,4.7238199999999999,0,0,0]
[null,null,null,null,null,null,null,null,null,null,0,1.0586,0,0,0]
[null,null,null,null,null,null,null,null,null,null,0,1.2075499999999999,2.8282999999999999E-2,0,0]
[null,null,null,null,null,null,null,null,null,null,0,1.9101399999999999,0.120633,0,0]
[null,null,null,null,null,null,null,null,null,null,0,0.18582299999999999,0,0,0]
[null,null,null,null,null,null,null,null,null,null,0,0.24709,2.5009E-2,0,0]
[null,null,null,null,null,null,null,null,null,null,0,5.11435,0.892544,0,0]
[null,null,null,null,null,null,null,null,null,null,0,0.20266300000000001,0,0,0]
[null,null,null,null,null,null,null,null,null,null,0,1.7824899999999999,0,0,0]
[null,null,null,null,null,null,null,null,null,null,0,0.25382500000000002,0,0,0]
[null,null,null,null,null,null,null,null,null,null,0,0.59565299999999999,1.0552900000000001,0,0]
[null,null,null,null,null,null,null,null,null,null,0,1.57629,4.4507600000000001E-2,0,0]
[null,null,null,null,null,null,null,null,null,null,0,1.2281599999999999,0.17955199999999999,0,0]
[null,null,null,null,null,null,null,null,null,null,0,3.6966399999999999,0,0,0]
[null,null,null,null,null,null,null,null,null,null,0,0.109179,0,0,0]
[null,null,null,null,null,null,null,null,null,null,0,0.17397899999999999,-0.35189599999999999,8,0]
[null,null,null,null,null,null,null,null,null,null,0,11.450799999999999,0,0,0]
[null,null,null,null,null,null,null,null,null,null,0,6.4700000000000001E-4,-0.56875600000000004,16,0]
[null,null,null,null,null,null,null,null,null,null,0,0.902447,0,0,0]
[null,null,null,null,null,null,null,null,null,null,0,2.4008799999999999,5.8122E-2,12,0]
[null,null,null,null,null,null,null,null,null,null,0,0.239563,1.5128000000000001E-2,0,0]
[null,null,null,null,null,null,null,null,null,null,0,0.129416,0,0,0]
[null,null,null,null,null,null,null,null,null,null,0,7.3919600000000001,0,2,0]
[null,null,null,null,null,null,null,null,null,null,0,0.765926,0.42070600000000002,0,0]
[null,null,null,null,null,null,null,null,null,null,0,0,0,0,0]
[null,null,null,null,null,null,null,null,null,null,0.3,9.8111899999999999,9.4886999999999999E-2,0,0]
[null,null,null,null,null,null,null,null,null,null,0,0.24873899999999999,0,0,0]
[null,null,null,null,null,null,null,null,null,null,0,2.0521399999999999E-2,6.4900000000000001E-3,0,0]
[null,null,null,null,null,null,null,null,null,null,0,3.7574200000000002,0,0,0]
[null,null,null,null,null,null,null,null,null,null,0,5.4510999999999997E-2,0,0,0]
[null,null,null,null,null,null,null,null,null,null,0,0.103982,0,0,0]
[null,null,null,null,null,null,null,null,null,null,0,4.7599000000000002E-2,0,0,0]
[null,null,null,null,null,null,null,null,null,null,0,6.3464000000000007E-2,0,0,0]
[null,null,null,null,null,null,null,null,null,null,0,0.35267999999999999,0,0,0]
[null,null,null,null,null,null,null,null,null,null,1,15.398999999999999,124.139,0,0]

{"sheet":"Projects","index":2,"n_rows":674,"n_cols":16,"rows_kept":674,"cut":false,"hidden":false,"merged":[]}
[]
[]
[]
[]
[]
["BARID","DESCRIPTION","FORCE","COST","POST_PASS","POST_HPOW","POST_WSTORE","BARID","DESCR","x","y","ydwn","yup","match","CHECK","invalid"]
[null,null,null,null,null,null,null,{"$f":"\"Bar_\"&A7","v":"Bar_"},{"$f":"B7","v":0},null,null,null,null,{"$f":"MATCH(A7,'Barrier Data'!$A$8:$A$1048576,0)","v":{"$error":"#N/A"}},{"$f":"IF(ISNUMBER(N7),\"\",\"Error: ID not found\")","v":"Error: ID not found"},{"$f":"IF(I7=\"NA\",0,IF(ISNUMBER(N7),0,1))","v":1}]
["A","Remove",0,250,1,0,0,{"$f":"\"Bar_\"&A8","v":"Bar_A"},{"$f":"B8","v":"Remove"},1,0.6,0.42,4.7610000000000001,{"$f":"MATCH(A8,'Barrier Data'!$A$8:$A$1048576,0)","v":2},{"$f":"IF(ISNUMBER(N8),\"\",\"Error: ID not found\")","v":""},{"$f":"IF(I8=\"NA\",0,IF(ISNUMBER(N8),0,1))","v":0}]
["B","Remove",0,120,1,0,0,"Bar_B","Remove",1,1,4.7249999999999996,3.91,{"$f":"MATCH(A9,'Barrier Data'!$A$8:$A$1048576,0)","v":3},"",0]
["C","Remove",0,70,1,0,0,"Bar_C","Remove",1,0.7,3.9375,3.01,{"$f":"MATCH(A10,'Barrier Data'!$A$8:$A$1048576,0)","v":4},"",0]
["E","Remove",0,100,1,0,0,"Bar_E","Remove",0,0,0,0,{"$f":"MATCH(A11,'Barrier Data'!$A$8:$A$1048576,0)","v":6},"",0]
["F","Remove",0,50,1,0,0,"Bar_F","Remove",1,0.45,4.5495000000000001,0.45,{"$f":"MATCH(A12,'Barrier Data'!$A$8:$A$1048576,0)","v":7},"",0]
[null,null,null,null,null,null,null,null,null,0,0,0,0]
[null,null,null,null,null,null,null,null,null,0,0,0,0]
[null,null,null,null,null,null,null,null,null,0,0,0,0]
[null,null,null,null,null,null,null,null,null,0,0,0,0]
[null,null,null,null,null,null,null,null,null,0,0,0,0]
[null,null,null,null,null,null,null,null,null,0,0,0,0]
[null,null,null,null,null,null,null,null,null,0,0,0,0]
[null,null,null,null,null,null,null,null,null,0,1,0,0]
[null,null,null,null,null,null,null,null,null,0,0,0,0]
[null,null,null,null,null,null,null,null,null,0,0,0,0]
[null,null,null,null,null,null,null,null,null,0,0,0,0]
[null,null,null,null,null,null,null,null,null,0,0,0,0]
[null,null,null,null,null,null,null,null,null,0,0,0,0]
[null,null,null,null,null,null,null,null,null,0,0,0,0]
[null,null,null,null,null,null,null,null,null,0,0,0,0]
[null,null,null,null,null,null,null,null,null,0,0.80500000000000005,0,0]
[null,null,null,null,null,null,null,null,null,0,0,0,0]
[null,null,null,null,null,null,null,null,null,0,0,0,0]
[null,null,null,null,null,null,null,null,null,0,0,0,0]
[null,null,null,null,null,null,null,null,null,0,0,0,0]
[null,null,null,null,null,null,null,null,null,0,0,0,0]
[null,null,null,null,null,null,null,null,null,0,0,0,0]
[null,null,null,null,null,null,null,null,null,0,0,0,0]
[null,null,null,null,null,null,null,null,null,0,0,0,0]
[null,null,null,null,null,null,null,null,null,0,0,0,0]
[null,null,null,null,null,null,null,null,null,0,0,0,0]
[null,null,null,null,null,null,null,null,null,0,0,0,0]
[null,null,null,null,null,null,null,null,null,0,0,0,0]
[null,null,null,null,null,null,null,null,null,0,0,0,0]
[null,null,null,null,null,null,null,null,null,0,0,0,0]
[null,null,null,null,null,null,null,null,null,0,0,0,0]
[null,null,null,null,null,null,null,null,null,0,0,0,0]
[null,null,null,null,null,null,null,null,null,0,0,0,0]
[null,null,null,null,null,null,null,null,null,0,0,0,0]
[null,null,null,null,null,null,null,null,null,0,0,0,0]
[null,null,null,null,null,null,null,null,null,0,0,0,0]
[null,null,null,null,null,null,null,null,null,0,0,0,0]
[null,null,null,null,null,null,null,null,null,0,0,0,0]
[null,null,null,null,null,null,null,null,null,0,0,0,0]
[null,null,null,null,null,null,null,null,null,0,0,0,0]
[null,null,null,null,null,null,null,null,null,0,0,0,0]
[null,null,null,null,null,null,null,null,null,0,0,0,0]
[null,null,null,null,null,null,null,null,null,0,0,0,0]
[null,null,null,null,null,null,null,null,null,0,0,0,0]
[null,null,null,null,null,null,null,null,null,0,0,0,0]
[null,null,null,null,null,null,null,null,null,0,0,0,0]
[null,null,null,null,null,null,null,null,null,0,0,0,0]
[null,null,null,null,null,null,null,null,null,0,0,0,0]
[null,null,null,null,null,null,null,null,null,0,0,0,0]
[null,null,null,null,null,null,null,null,null,0,0,0,0]
[null,null,null,null,null,null,null,null,null,0,0,0,0]
[null,null,null,null,null,null,null,null,null,0,0,0,0]
[null,null,null,null,null,null,null,null,null,0,0,0,0]
[null,null,null,null,null,null,null,null,null,0,0,0,0]
[null,null,null,null,null,null,null,null,null,0,0,0,0]
[null,null,null,null,null,null,null,null,null,0,0,0,0]
[null,null,null,null,null,null,null,null,null,0,0,0,0]
[null,null,null,null,null,null,null,null,null,0,0,0,0]
[null,null,null,null,null,null,null,null,null,0,0,0,0]
[null,null,null,null,null,null,null,null,null,0,0,0,0]
[null,null,null,null,null,null,null,null,null,0,0,0,0]
[null,null,null,null,null,null,null,null,null,0,0,0,0]
[null,null,null,null,null,null,null,null,null,0,0,0,0]
[null,null,null,null,null,null,null,null,null,0,0,0,0]
[null,null,null,null,null,null,null,null,null,0,0,0,0]
[null,null,null,null,null,null,null,null,null,0,0,0,0]
[null,null,null,null,null,null,null,null,null,0,0,-2.2397,0]
[null,null,null,null,null,null,null,null,null,0,0,-1.5892999999999999,0]
[null,null,null,null,null,null,null,null,null,0,0,0,0]
[null,null,null,null,null,null,null,null,null,0,0,0,0]
[null,null,null,null,null,null,null,null,null,0,0,0,0]
[null,null,null,null,null,null,null,null,null,0,0,0,0]
[null,null,null,null,null,null,null,null,null,0,0,0,0]
[null,null,null,null,null,null,null,null,null,0,0,0,0]
[null,null,null,null,null,null,null,null,null,0,0,0,0]
[null,null,null,null,null,null,null,null,null,0,0,0,0]
[null,null,null,null,null,null,null,null,null,0,0,0,0]
[null,null,null,null,null,null,null,null,null,0,0,0,0]
[null,null,null,null,null,null,null,null,null,0,0,0,0]
[null,null,null,null,null,null,null,null,null,0,0,0,0]
[null,null,null,null,null,null,null,null,null,0,0,0,0]
[null,null,null,null,null,null,null,null,null,0,0,0,0]
[null,null,null,null,null,null,null,null,null,0,0,0,0]
[null,null,null,null,null,null,null,null,null,0,0,0,0]
[null,null,null,null,null,null,null,null,null,0,0,0,0]
[null,null,null,null,null,null,null,null,null,0,0,0,0]
[null,null,null,null,null,null,null,null,null,0,0,0,0]
[null,null,null,null,null,null,null,null,null,0,0,0,0]
[null,null,null,null,null,null,null,null,null,0,0,0,0]
[null,null,null,null,null,null,null,null,null,0,0,0,0]
[null,null,null,null,null,null,null,null,null,0,0,0,0]
[null,null,null,null,null,null,null,null,null,0,0,0,0]
[null,null,null,null,null,null,null,null,null,0,0,0,0]
[null,null,null,null,null,null,null,null,null,0,0,0,0]
[null,null,null,null,null,null,null,null,null,0,0,0,0]
[null,null,null,null,null,null,null,null,null,0,0,0,0]
[null,null,null,null,null,null,null,null,null,0,0,0,0]
[null,null,null,null,null,null,null,null,null,0,0,0,0]
[null,null,null,null,null,null,null,null,null,0,0,0,0]
[null,null,null,null,null,null,null,null,null,0,0,0,0]
[null,null,null,null,null,null,null,null,null,0,0,0,0]
[null,null,null,null,null,null,null,null,null,0,0,0,0]
[null,null,null,null,null,null,null,null,null,0,0,0,0]
[null,null,null,null,null,null,null,null,null,0,0,0,0]
[null,null,null,null,null,null,null,null,null,0,0,0,0]
[null,null,null,null,null,null,null,null,null,0,0,0,0]
[null,null,null,null,null,null,null,null,null,0,0,0,0]
[null,null,null,null,null,null,null,null,null,0,0,-6.5060200000000004,0]
[null,null,null,null,null,null,null,null,null,0,0,0,0]
[null,null,null,null,null,null,null,null,null,0,0,0,0]
[null,null,null,null,null,null,null,null,null,0,0,0,0]
[null,null,null,null,null,null,null,null,null,0,0,0,0]
[null,null,null,null,null,null,null,null,null,0,0,0,0]
[null,null,null,null,null,null,null,null,null,0,0,0,0]
[null,null,null,null,null,null,null,null,null,0,0,0,0]
[null,null,null,null,null,null,null,null,null,0,0,0,0]
[null,null,null,null,null,null,null,null,null,0,0,0,0]
[null,null,null,null,null,null,null,null,null,0,0,0,0]
[null,null,null,null,null,null,null,null,null,0,0,0,0]
[null,null,null,null,null,null,null,null,null,0,0,0,0]
[null,null,null,null,null,null,null,null,null,0,0,0,0]
[null,null,null,null,null,null,null,null,null,0,0,0,0]
[null,null,null,null,null,null,null,null,null,0,0,0,0]
[null,null,null,null,null,null,null,null,null,0,0,0,0]
[null,null,null,null,null,null,null,null,null,0,0,0,0]
[null,null,null,null,null,null,null,null,null,0,0,0,0]
[null,null,null,null,null,null,null,null,null,0,0,0,0]
[null,null,null,null,null,null,null,null,null,0,0,-4.5861799999999997,0]
[null,null,null,null,null,null,null,null,null,0,0,0,0]
[null,null,null,null,null,null,null,null,null,0,0,0,0]
[null,null,null,null,null,null,null,null,null,0,0,0,0]
[null,null,null,null,null,null,null,null,null,0,0,-1.43086,0]
[null,null,null,null,null,null,null,null,null,0,0,0,0]
[null,null,null,null,null,null,null,null,null,0,0,0,0]
[null,null,null,null,null,null,null,null,null,0,0,0,0]
[null,null,null,null,null,null,null,null,null,0,0,0,0]
[null,null,null,null,null,null,null,null,null,0,0,0,0]
[null,null,null,null,null,null,null,null,null,0,0,0,0]
[null,null,null,null,null,null,null,null,null,0,0,0,0]
[null,null,null,null,null,null,null,null,null,0,0,0,0]
[null,null,null,null,null,null,null,null,null,0,0,0,0]
[null,null,null,null,null,null,null,null,null,0,0,0,0]
[null,null,null,null,null,null,null,null,null,0,0,0,0]
[null,null,null,null,null,null,null,null,null,0,0,-2.36083,0]
[null,null,null,null,null,null,null,null,null,0,0.91,0,0]
[null,null,null,null,null,null,null,null,null,0,0,-0.42063200000000001,0]
[null,null,null,null,null,null,null,null,null,0,0,-3.92191,0]
[null,null,null,null,null,null,null,null,null,0,0,0,0]
[null,null,null,null,null,null,null,null,null,0,0,0,0]
[null,null,null,null,null,null,null,null,null,0,0,0,0]
[null,null,null,null,null,null,null,null,null,0,0,0,0]
[null,null,null,null,null,null,null,null,null,0,0,0,0]
[null,null,null,null,null,null,null,null,null,0,0,0,0]
[null,null,null,null,null,null,null,null,null,0,0,0,0]
[null,null,null,null,null,null,null,null,null,0,0,0,0]
[null,null,null,null,null,null,null,null,null,0,0,0,0]
[null,null,null,null,null,null,null,null,null,0,0,0,0]
[null,null,null,null,null,null,null,null,null,0,0,0,0]
[null,null,null,null,null,null,null,null,null,0,0,0,0]
[null,null,null,null,null,null,null,null,null,0,0,0,0]
[null,null,null,null,null,null,null,null,null,0,0,0,0]
[null,null,null,null,null,null,null,null,null,0,0,0,0]
[null,null,null,null,null,null,null,null,null,0,0,0,0]
[null,null,null,null,null,null,null,null,null,0,0,0,0]
[null,null,null,null,null,null,null,null,null,0,0,0,0]
[null,null,null,null,null,null,null,null,null,0,0,0,0]
[null,null,null,null,null,null,null,null,null,0,0,0,0]
[null,null,null,null,null,null,null,null,null,0,0,0,0]
[null,null,null,null,null,null,null,null,null,0,0,0,0]
[null,null,null,null,null,null,null,null,null,0,0,0,0]
[null,null,null,null,null,null,null,null,null,0,0,0,0]
[null,null,null,null,null,null,null,null,null,0,0,0,0]
[null,null,null,null,null,null,null,null,null,0,0,-8.0957000000000008,0]
[null,null,null,null,null,null,null,null,null,0,0,0,0]
[null,null,null,null,null,null,null,null,null,0,0,0,0]
[null,null,null,null,null,null,null,null,null,0,0,0,0]
[null,null,null,null,null,null,null,null,null,0,0,0,0]
[null,null,null,null,null,null,null,null,null,0,0,0,0]
[null,null,null,null,null,null,null,null,null,0,0,0,0]
[null,null,null,null,null,null,null,null,null,0,0,0,0]
[null,null,null,null,null,null,null,null,null,0,0,0,0]
[null,null,null,null,null,null,null,null,null,0,0,0,0]
[null,null,null,null,null,null,null,null,null,0,0,0,0]
[null,null,null,null,null,null,null,null,null,0,0,0,0]
[null,null,null,null,null,null,null,null,null,0,0,0,0]
[null,null,null,null,null,null,null,null,null,0,0,0,0]
[null,null,null,null,null,null,null,null,null,0,0,0,0]
[null,null,null,null,null,null,null,null,null,0,0,0,0]
[null,null,null,null,null,null,null,null,null,0,0,0,0]
[null,null,null,null,null,null,null,null,null,0,0,0,0]
[null,null,null,null,null,null,null,null,null,0,0,0,0]
[null,null,null,null,null,null,null,null,null,0,0,0,0]
[null,null,null,null,null,null,null,null,null,0,0,0,0]
[null,null,null,null,null,null,null,null,null,0,0,0,0]
[null,null,null,null,null,null,null,null,null,0,0,0,0]
[null,null,null,null,null,null,null,null,null,0,0,0,0]
[null,null,null,null,null,null,null,null,null,0,0,0,-6.1772999999999998]
[null,null,null,null,null,null,null,null,null,0,0,-1.29661,0]
[null,null,null,null,null,null,null,null,null,0,0,0,0]
[null,null,null,null,null,null,null,null,null,0,0,0,0]
[null,null,null,null,null,null,null,null,null,0,0,0,0]
[null,null,null,null,null,null,null,null,null,0,0,0,0]
[null,null,null,null,null,null,null,null,null,0,0,0,0]
[null,null,null,null,null,null,null,null,null,0,0,0,0]
[null,null,null,null,null,null,null,null,null,0,0,0,0]
[null,null,null,null,null,null,null,null,null,0,0,0,0]
[null,null,null,null,null,null,null,null,null,0,0,0,0]
[null,null,null,null,null,null,null,null,null,0,0,-0.13172600000000001,0]
[null,null,null,null,null,null,null,null,null,0,0,-0.132439,0]
[null,null,null,null,null,null,null,null,null,0,0,0,0]
[null,null,null,null,null,null,null,null,null,0,0,0,0]
[null,null,null,null,null,null,null,null,null,0,0,0,0]
[null,null,null,null,null,null,null,null,null,0,0,0,0]
[null,null,null,null,null,null,null,null,null,0,0,0,0]
[null,null,null,null,null,null,null,null,null,0,0,0,0]
[null,null,null,null,null,null,null,null,null,0,0,0,0]
[null,null,null,null,null,null,null,null,null,0,0,0,0]
[null,null,null,null,null,null,null,null,null,0,0,0,0]
[null,null,null,null,null,null,null,null,null,0,0,0,0]
[null,null,null,null,null,null,null,null,null,0,0,0,0]
[null,null,null,null,null,null,null,null,null,0,0,0,0]
[null,null,null,null,null,null,null,null,null,0,0,0,0]
[null,null,null,null,null,null,null,null,null,0,0,0,0]
[null,null,null,null,null,null,null,null,null,0,0,0,0]
[null,null,null,null,null,null,null,null,null,0,0,0,0]
[null,null,null,null,null,null,null,null,null,0,0,0,0]
[null,null,null,null,null,null,null,null,null,0,0,0,0]
[null,null,null,null,null,null,null,null,null,0,0,0,0]
[null,null,null,null,null,null,null,null,null,0,0,0,0]
[null,null,null,null,null,null,null,null,null,0,0,0,0]
[null,null,null,null,null,null,null,null,null,0,0,0,0]
[null,null,null,null,null,null,null,null,null,0,0,0,0]
[null,null,null,null,null,null,null,null,null,0,0,0,0]
[null,null,null,null,null,null,null,null,null,0,0,0,0]
[null,null,null,null,null,null,null,null,null,0,0,0,0]
[null,null,null,null,null,null,null,null,null,0,0,0,0]
[null,null,null,null,null,null,null,null,null,0,0,-0.23987900000000001,0]
[null,null,null,null,null,null,null,null,null,0,0,0,0]
[null,null,null,null,null,null,null,null,null,0,0,0,0]
[null,null,null,null,null,null,null,null,null,0,0,0,0]
[null,null,null,null,null,null,null,null,null,0,0,0,0]
[null,null,null,null,null,null,null,null,null,0,0,0,0]
[null,null,null,null,null,null,null,null,null,0,0,0,0]
[null,null,null,null,null,null,null,null,null,0,0,0,0]
[null,null,null,null,null,null,null,null,null,0,0,0,0]
[null,null,null,null,null,null,null,null,null,0,0,0,0]
[null,null,null,null,null,null,null,null,null,0,0,0,0]
[null,null,null,null,null,null,null,null,null,0,0,0,0]
[null,null,null,null,null,null,null,null,null,0,0,0,0]
[null,null,null,null,null,null,null,null,null,0,0,0,0]
[null,null,null,null,null,null,null,null,null,0,0,0,0]
[null,null,null,null,null,null,null,null,null,0,0,0,0]
[null,null,null,null,null,null,null,null,null,0,0,0,0]
[null,null,null,null,null,null,null,null,null,0,0,0,0]
[null,null,null,null,null,null,null,null,null,0,0,0,0]
[null,null,null,null,null,null,null,null,null,0,0,0,0]
[null,null,null,null,null,null,null,null,null,0,0,-2.2397,0]
[null,null,null,null,null,null,null,null,null,0,0,0,0]
[null,null,null,null,null,null,null,null,null,0,0,0,0]
[null,null,null,null,null,null,null,null,null,0,0,0,0]
[null,null,null,null,null,null,null,null,null,0,0,0,0]
[null,null,null,null,null,null,null,null,null,0,0,0,0]
[null,null,null,null,null,null,null,null,null,0,0,0,0]
[null,null,null,null,null,null,null,null,null,0,0,0,0]
[null,null,null,null,null,null,null,null,null,0,0,0,0]
[null,null,null,null,null,null,null,null,null,0,0,0,0]
[null,null,null,null,null,null,null,null,null,0,0,0,0]
[null,null,null,null,null,null,null,null,null,0,0,0,0]
[null,null,null,null,null,null,null,null,null,0,0,0,0]
[null,null,null,null,null,null,null,null,null,0,0,0,0]
[null,null,null,null,null,null,null,null,null,0,0,0,0]
[null,null,null,null,null,null,null,null,null,0,0,0,0]
[null,null,null,null,null,null,null,null,null,0,0,0,0]
[null,null,null,null,null,null,null,null,null,0,0,0,0]
[null,null,null,null,null,null,null,null,null,0,0,0,0]
[null,null,null,null,null,null,null,null,null,0,0,0,0]
[null,null,null,null,null,null,null,null,null,0,0,0,0]
[null,null,null,null,null,null,null,null,null,0,0,0,0]
[null,null,null,null,null,null,null,null,null,0,0,0,0]
[null,null,null,null,null,null,null,null,null,0,0,0,0]
[null,null,null,null,null,null,null,null,null,0,0,0,0]
[null,null,null,null,null,null,null,null,null,0,0,0,0]
[null,null,null,null,null,null,null,null,null,0,0,0,0]
[null,null,null,null,null,null,null,null,null,0,0,0,0]
[null,null,null,null,null,null,null,null,null,0,0,0,0]
[null,null,null,null,null,null,null,null,null,0,0,0,0]
[null,null,null,null,null,null,null,null,null,0,0,0,0]
[null,null,null,null,null,null,null,null,null,0,0,0,0]
[null,null,null,null,null,null,null,null,null,0,0,0,0]
[null,null,null,null,null,null,null,null,null,0,0,0,0]
[null,null,null,null,null,null,null,null,null,0,0,0,0]
[null,null,null,null,null,null,null,null,null,0,0,-0.70972900000000005,0]
[null,null,null,null,null,null,null,null,null,0,0,-0.45052599999999998,0]
[null,null,null,null,null,null,null,null,null,0,0,0,0]
[null,null,null,null,null,null,null,null,null,0,0,-0.76084499999999999,-3.16107]
[null,null,null,null,null,null,null,null,null,0,0,0,0]
[null,null,null,null,null,null,null,null,null,0,0,0,0]
[null,null,null,null,null,null,null,null,null,0,0,0,0]
[null,null,null,null,null,null,null,null,null,0,0,0,0]
[null,null,null,null,null,null,null,null,null,0,0,0,0]
[null,null,null,null,null,null,null,null,null,0,0,0,0]
[null,null,null,null,null,null,null,null,null,0,0,0,0]
[null,null,null,null,null,null,null,null,null,0,0,0,0]
[null,null,null,null,null,null,null,null,null,0,0,0,0]
[null,null,null,null,null,null,null,null,null,0,0,0,0]
[null,null,null,null,null,null,null,null,null,0,0,0,0]
[null,null,null,null,null,null,null,null,null,0,0,0,0]
[null,null,null,null,null,null,null,null,null,0,0,0,0]
[null,null,null,null,null,null,null,null,null,0,0,0,0]
[null,null,null,null,null,null,null,null,null,0,0,0,0]
[null,null,null,null,null,null,null,null,null,0,0,0,0]
[null,null,null,null,null,null,null,null,null,0,0,0,0]
[null,null,null,null,null,null,null,null,null,0,0,0,0]
[null,null,null,null,null,null,null,null,null,0,0,0,0]
[null,null,null,null,null,null,null,null,null,0,0,0,0]
[null,null,null,null,null,null,null,null,null,0,0,0,0]
[null,null,null,null,null,null,null,null,null,0,0,0,0]
[null,null,null,null,null,null,null,null,null,0,0,0,0]
[null,null,null,null,null,null,null,null,null,0,0,0,0]
[null,null,null,null,null,null,null,null,null,0,0,0,0]
[null,null,null,null,null,null,null,null,null,0,0,0,0]
[null,null,null,null,null,null,null,null,null,0,0,0,0]
[null,null,null,null,null,null,null,null,null,0,0,0,0]
[null,null,null,null,null,null,null,null,null,0,0,0,0]
[null,null,null,null,null,null,null,null,null,0,0,0,0]
[null,null,null,null,null,null,null,null,null,0,0,0,0]
[null,null,null,null,null,null,null,null,null,0,0,0,0]
[null,null,null,null,null,null,null,null,null,0,0,0,0]
[null,null,null,null,null,null,null,null,null,0,0,0,0]
[null,null,null,null,null,null,null,null,null,0,0,0,0]
[null,null,null,null,null,null,null,null,null,0,0,0,0]
[null,null,null,null,null,null,null,null,null,0,0,0,0]
[null,null,null,null,null,null,null,null,null,0,0,0,0]
[null,null,null,null,null,null,null,null,null,0,0,0,0]
[null,null,null,null,null,null,null,null,null,0,0,0,0]
[null,null,null,null,null,null,null,null,null,0,0,0,0]
[null,null,null,null,null,null,null,null,null,0,0,0,0]
[null,null,null,null,null,null,null,null,null,0,0,0,0]
[null,null,null,null,null,null,null,null,null,0,0,0,0]
[null,null,null,null,null,null,null,null,null,0,0,0,0]
[null,null,null,null,null,null,null,null,null,0,0,0,0]
[null,null,null,null,null,null,null,null,null,0,0,0,0]
[null,null,null,null,null,null,null,null,null,0,0,0,0]
[null,null,null,null,null,null,null,null,null,0,0,0,0]
[null,null,null,null,null,null,null,null,null,0,0,0,0]
[null,null,null,null,null,null,null,null,null,0,0,0,0]
[null,null,null,null,null,null,null,null,null,0,0,0,0]
[null,null,null,null,null,null,null,null,null,0,0,0,0]
[null,null,null,null,null,null,null,null,null,0,0,0,0]
[null,null,null,null,null,null,null,null,null,0,0,0,0]
[null,null,null,null,null,null,null,null,null,0,0,0,0]
[null,null,null,null,null,null,null,null,null,0,0,0,0]
[null,null,null,null,null,null,null,null,null,0,0,0,0]
[null,null,null,null,null,null,null,null,null,0,0,0,0]
[null,null,null,null,null,null,null,null,null,0,0,0,0]
[null,null,null,null,null,null,null,null,null,0,0,0,0]
[null,null,null,null,null,null,null,null,null,0,0,0,0]
[null,null,null,null,null,null,null,null,null,0,0,0,0]
[null,null,null,null,null,null,null,null,null,0,0,0,0]
[null,null,null,null,null,null,null,null,null,0,1,0,0]
[null,null,null,null,null,null,null,null,null,0,0,0,0]
[null,null,null,null,null,null,null,null,null,0,0,0,0]
[null,null,null,null,null,null,null,null,null,0,0,0,0]
[null,null,null,null,null,null,null,null,null,0,0,0,0]
[null,null,null,null,null,null,null,null,null,0,0,0,0]
[null,null,null,null,null,null,null,null,null,0,0,0,0]
[null,null,null,null,null,null,null,null,null,0,0,0,0]
[null,null,null,null,null,null,null,null,null,0,0,0,-4.1515000000000004]
[null,null,null,null,null,null,null,null,null,0,0,0,0]
[null,null,null,null,null,null,null,null,null,0,0,0,0]
[null,null,null,null,null,null,null,null,null,0,0,0,0]
[null,null,null,null,null,null,null,null,null,0,0,0,0]
[null,null,null,null,null,null,null,null,null,0,0,0,0]
[null,null,null,null,null,null,null,null,null,0,0,0,0]
[null,null,null,null,null,null,null,null,null,0,0,0,0]
[null,null,null,null,null,null,null,null,null,0,0,0,0]
[null,null,null,null,null,null,null,null,null,0,0,0,0]
[null,null,null,null,null,null,null,null,null,0,0,0,0]
[null,null,null,null,null,null,null,null,null,0,0,0,0]
[null,null,null,null,null,null,null,null,null,0,0,0,0]
[null,null,null,null,null,null,null,null,null,0,0,-0.27729799999999999,0]
[null,null,null,null,null,null,null,null,null,0,0,-3.1480000000000001E-2,0]
[null,null,null,null,null,null,null,null,null,0,0,0,0]
[null,null,null,null,null,null,null,null,null,0,0,-8.6543999999999996E-2,0]
[null,null,null,null,null,null,null,null,null,0,0,-5.8401000000000002E-2,0]
[null,null,null,null,null,null,null,null,null,0,0,0,0]
[null,null,null,null,null,null,null,null,null,0,0,0,0]
[null,null,null,null,null,null,null,null,null,0,0,0,0]
[null,null,null,null,null,null,null,null,null,0,0,0,0]
[null,null,null,null,null,null,null,null,null,0,0,-6.7528100000000002,0]
[null,null,null,null,null,null,null,null,null,0,0,-1.22738E-2,0]
[null,null,null,null,null,null,null,null,null,0,0,-8.2554000000000002E-2,0]
[null,null,null,null,null,null,null,null,null,0,0,-5.32988E-2,0]
[null,null,null,null,null,null,null,null,null,0,0,-7.3163900000000002,0]
[null,null,null,null,null,null,null,null,null,0,0,0,0]
[null,null,null,null,null,null,null,null,null,0,0,0,0]
[null,null,null,null,null,null,null,null,null,0,0,-2.7092399999999999,0]
[null,null,null,null,null,null,null,null,null,0,0,0,0]
[null,null,null,null,null,null,null,null,null,0,0,0,0]
[null,null,null,null,null,null,null,null,null,0,0,0,0]
[null,null,null,null,null,null,null,null,null,0,0,0,0]
[null,null,null,null,null,null,null,null,null,0,0,0,0]
[null,null,null,null,null,null,null,null,null,0,0,0,0]
[null,null,null,null,null,null,null,null,null,0,0,0,0]
[null,null,null,null,null,null,null,null,null,0,0,0,0]
[null,null,null,null,null,null,null,null,null,0,0,0,0]
[null,null,null,null,null,null,null,null,null,0,0,0,0]
[null,null,null,null,null,null,null,null,null,0,0,0,0]
[null,null,null,null,null,null,null,null,null,0,0,0,0]
[null,null,null,null,null,null,null,null,null,0,0,0,0]
[null,null,null,null,null,null,null,null,null,0,0,0,0]
[null,null,null,null,null,null,null,null,null,0,0,0,0]
[null,null,null,null,null,null,null,null,null,0,0,-0.27729799999999999,0]
[null,null,null,null,null,null,null,null,null,0,0,0,0]
[null,null,null,null,null,null,null,null,null,0,0,0,0]
[null,null,null,null,null,null,null,null,null,0,0,0,0]
[null,null,null,null,null,null,null,null,null,0,0,0,0]
[null,null,null,null,null,null,null,null,null,0,0,0,0]
[null,null,null,null,null,null,null,null,null,0,0,0,0]
[null,null,null,null,null,null,null,null,null,0,0,0,0]
[null,null,null,null,null,null,null,null,null,0,0,0,0]
[null,null,null,null,null,null,null,null,null,0,0,0,0]
[null,null,null,null,null,null,null,null,null,0,0,0,0]
[null,null,null,null,null,null,null,null,null,0,0,0,0]
[null,null,null,null,null,null,null,null,null,0,0,0,0]
[null,null,null,null,null,null,null,null,null,0,0,0,0]
[null,null,null,null,null,null,null,null,null,0,0,0,0]
[null,null,null,null,null,null,null,null,null,0,0,0,0]
[null,null,null,null,null,null,null,null,null,0,0,0,0]
[null,null,null,null,null,null,null,null,null,0,0,0,0]
[null,null,null,null,null,null,null,null,null,0,0,0,0]
[null,null,null,null,null,null,null,null,null,0,0,0,0]
[null,null,null,null,null,null,null,null,null,0,0,0,0]
[null,null,null,null,null,null,null,null,null,0,0,0,0]
[null,null,null,null,null,null,null,null,null,0,0,0,0]
[null,null,null,null,null,null,null,null,null,0,0,0,0]
[null,null,null,null,null,null,null,null,null,0,0,0,0]
[null,null,null,null,null,null,null,null,null,0,0,0,0]
[null,null,null,null,null,null,null,null,null,0,0,0,0]
[null,null,null,null,null,null,null,null,null,0,0,0,0]
[null,null,null,null,null,null,null,null,null,0,0,0,0]
[null,null,null,null,null,null,null,null,null,0,0,0,0]
[null,null,null,null,null,null,null,null,null,0,0,0,0]
[null,null,null,null,null,null,null,null,null,0,0,0,0]
[null,null,null,null,null,null,null,null,null,0,0,0,0]
[null,null,null,null,null,null,null,null,null,0,0,0,0]
[null,null,null,null,null,null,null,null,null,0,0,0,0]
[null,null,null,null,null,null,null,null,null,0,0,0,0]
[null,null,null,null,null,null,null,null,null,0,0,0,0]
[null,null,null,null,null,null,null,null,null,0,0,0,0]
[null,null,null,null,null,null,null,null,null,0,0,0,0]
[null,null,null,null,null,null,null,null,null,0,0,0,0]
[null,null,null,null,null,null,null,null,null,0,0,0,0]
[null,null,null,null,null,null,null,null,null,0,0,0,0]
[null,null,null,null,null,null,null,null,null,0,0,0,0]
[null,null,null,null,null,null,null,null,null,0,0,0,0]
[null,null,null,null,null,null,null,null,null,0,0,0,0]
[null,null,null,null,null,null,null,null,null,0,1,0,0]
[null,null,null,null,null,null,null,null,null,0,0,0,0]
[null,null,null,null,null,null,null,null,null,0,0,0,0]
[null,null,null,null,null,null,null,null,null,0,0,0,0]
[null,null,null,null,null,null,null,null,null,0,0,-12.1661,0]
[null,null,null,null,null,null,null,null,null,0,0,0,0]
[null,null,null,null,null,null,null,null,null,0,0,0,0]
[null,null,null,null,null,null,null,null,null,0,0,0,0]
[null,null,null,null,null,null,null,null,null,0,0,0,0]
[null,null,null,null,null,null,null,null,null,0,0,0,0]
[null,null,null,null,null,null,null,null,null,0,0,0,0]
[null,null,null,null,null,null,null,null,null,0,0,0,0]
[null,null,null,null,null,null,null,null,null,0,0,0,0]
[null,null,null,null,null,null,null,null,null,0,0,0,0]
[null,null,null,null,null,null,null,null,null,0,0,0,0]
[null,null,null,null,null,null,null,null,null,0,0,0,0]
[null,null,null,null,null,null,null,null,null,0,0,0,0]
[null,null,null,null,null,null,null,null,null,0,0,0,0]
[null,null,null,null,null,null,null,null,null,0,0,0,0]
[null,null,null,null,null,null,null,null,null,0,0,0,0]
[null,null,null,null,null,null,null,null,null,0,0,0,0]
[null,null,null,null,null,null,null,null,null,0,0,0,0]
[null,null,null,null,null,null,null,null,null,0,0,0,0]
[null,null,null,null,null,null,null,null,null,0,0,0,0]
[null,null,null,null,null,null,null,null,null,0,0,0,0]
[null,null,null,null,null,null,null,null,null,0,0,0,0]
[null,null,null,null,null,null,null,null,null,0,0,0,0]
[null,null,null,null,null,null,null,null,null,0,0,0,0]
[null,null,null,null,null,null,null,null,null,0,0,0,0]
[null,null,null,null,null,null,null,null,null,0,0,0,0]
[null,null,null,null,null,null,null,null,null,0,0,0,0]
[null,null,null,null,null,null,null,null,null,0,0,0,0]
[null,null,null,null,null,null,null,null,null,0,0,0,-3.92191]
[null,null,null,null,null,null,null,null,null,0,0,0,0]
[null,null,null,null,null,null,null,null,null,0,0,0,0]
[null,null,null,null,null,null,null,null,null,0,0,0,0]
[null,null,null,null,null,null,null,null,null,0,0,0,0]
[null,null,null,null,null,null,null,null,null,0,0,0,0]
[null,null,null,null,null,null,null,null,null,0,0,0,0]
[null,null,null,null,null,null,null,null,null,0,1,0,0]
[null,null,null,null,null,null,null,null,null,0,0,0,0]
[null,null,null,null,null,null,null,null,null,0,0,0,0]
[null,null,null,null,null,null,null,null,null,0,0,0,0]
[null,null,null,null,null,null,null,null,null,0,0,0,-9.7455300000000005]
[null,null,null,null,null,null,null,null,null,0,0,0,0]
[null,null,null,null,null,null,null,null,null,0,0,0,0]
[null,null,null,null,null,null,null,null,null,0,0,0,0]
[null,null,null,null,null,null,null,null,null,0,0,0,0]
[null,null,null,null,null,null,null,null,null,0,0,0,0]
[null,null,null,null,null,null,null,null,null,0,0,0,0]
[null,null,null,null,null,null,null,null,null,0,0,0,0]
[null,null,null,null,null,null,null,null,null,0,0,0,0]
[null,null,null,null,null,null,null,null,null,0,0,0,0]
[null,null,null,null,null,null,null,null,null,0,0,0,0]
[null,null,null,null,null,null,null,null,null,0,0,0,0]
[null,null,null,null,null,null,null,null,null,0,0,0,0]
[null,null,null,null,null,null,null,null,null,0,0,0,0]
[null,null,null,null,null,null,null,null,null,0,0,0,0]
[null,null,null,null,null,null,null,null,null,0,0,0,0]
[null,null,null,null,null,null,null,null,null,0,0,0,0]
[null,null,null,null,null,null,null,null,null,0,0,0,0]
[null,null,null,null,null,null,null,null,null,0,0,-0.110072,0]
[null,null,null,null,null,null,null,null,null,0,0,0,0]
[null,null,null,null,null,null,null,null,null,0,0,0,0]
[null,null,null,null,null,null,null,null,null,0,0,0,0]
[null,null,null,null,null,null,null,null,null,0,0,-0.43279200000000001,0]
[null,null,null,null,null,null,null,null,null,0,0,-1.03895,-2.8829600000000002]
[null,null,null,null,null,null,null,null,null,0,0,0,0]
[null,null,null,null,null,null,null,null,null,0,0,-0.17487900000000001,0]
[null,null,null,null,null,null,null,null,null,0,0,-0.31779499999999999,0]
[null,null,null,null,null,null,null,null,null,0,0,0,-5.4872899999999998]
[null,null,null,null,null,null,null,null,null,0,0,0,0]
[null,null,null,null,null,null,null,null,null,0,0,0,0]
[null,null,null,null,null,null,null,null,null,0,0,-3.019E-3,-0.29496800000000001]
[null,null,null,null,null,null,null,null,null,0,0,0,0]
[null,null,null,null,null,null,null,null,null,0,0,0,0]
[null,null,null,null,null,null,null,null,null,0,0,0,0]
[null,null,null,null,null,null,null,null,null,0,0,0,0]
[null,null,null,null,null,null,null,null,null,0,0,0,0]
[null,null,null,null,null,null,null,null,null,0,0,0,0]
[null,null,null,null,null,null,null,null,null,0,0,0,0]
[null,null,null,null,null,null,null,null,null,0,0,0,0]
[null,null,null,null,null,null,null,null,null,0,0,0,0]
[null,null,null,null,null,null,null,null,null,0,0,0,0]
[null,null,null,null,null,null,null,null,null,0,0,0,0]
[null,null,null,null,null,null,null,null,null,0,0,0,0]
[null,null,null,null,null,null,null,null,null,0,0,0,0]
[null,null,null,null,null,null,null,null,null,0,0,0,0]
[null,null,null,null,null,null,null,null,null,0,0,0,0]
[null,null,null,null,null,null,null,null,null,0,0,0,0]
[null,null,null,null,null,null,null,null,null,0,0,0,0]
[null,null,null,null,null,null,null,null,null,0,0,0,0]
[null,null,null,null,null,null,null,null,null,0,0,0,0]
[null,null,null,null,null,null,null,null,null,0,0,0,0]
[null,null,null,null,null,null,null,null,null,0,0,0,0]
[null,null,null,null,null,null,null,null,null,0,0,0,-0.110072]
[null,null,null,null,null,null,null,null,null,0,0,0,0]
[null,null,null,null,null,null,null,null,null,0,0,0,0]
[null,null,null,null,null,null,null,null,null,0,0,0,0]
[null,null,null,null,null,null,null,null,null,0,0,0,0]
[null,null,null,null,null,null,null,null,null,0,0,0,0]
[null,null,null,null,null,null,null,null,null,0,0,0,0]
[null,null,null,null,null,null,null,null,null,0,0,0,0]
[null,null,null,null,null,null,null,null,null,0,1,0,0]
[null,null,null,null,null,null,null,null,null,0,0,0,0]
[null,null,null,null,null,null,null,null,null,0,0,0,0]
[null,null,null,null,null,null,null,null,null,0,0,0,0]
[null,null,null,null,null,null,null,null,null,0,0,0,0]
[null,null,null,null,null,null,null,null,null,0,0,0,0]
[null,null,null,null,null,null,null,null,null,0,0,0,0]
[null,null,null,null,null,null,null,null,null,0,0,0,0]
[null,null,null,null,null,null,null,null,null,0,0,0,0]
[null,null,null,null,null,null,null,null,null,0,0,0,0]
[null,null,null,null,null,null,null,null,null,0,0,0,0]
[null,null,null,null,null,null,null,null,null,0,0,0,0]
[null,null,null,null,null,null,null,null,null,0,0,0,0]
[null,null,null,null,null,null,null,null,null,0,0,0,0]
[null,null,null,null,null,null,null,null,null,0,0,0,-0.297987]
[null,null,null,null,null,null,null,null,null,0,0,0,0]
[null,null,null,null,null,null,null,null,null,0,0,0,0]
[null,null,null,null,null,null,null,null,null,0,0,0,0]
[null,null,null,null,null,null,null,null,null,0,0,0,0]
[null,null,null,null,null,null,null,null,null,0,0,0,0]
[null,null,null,null,null,null,null,null,null,0,0,0,0]
[null,null,null,null,null,null,null,null,null,0,0,0,0]
[null,null,null,null,null,null,null,null,null,0,0,0,0]
[null,null,null,null,null,null,null,null,null,0,0,-1.29661,0]
[null,null,null,null,null,null,null,null,null,0,0,0,0]
[null,null,null,null,null,null,null,null,null,0,0,0,0]
[null,null,null,null,null,null,null,null,null,0,0,0,0]
[null,null,null,null,null,null,null,null,null,0,0,0,0]
[null,null,null,null,null,null,null,null,null,0,0,0,0]
[null,null,null,null,null,null,null,null,null,0,0,0,0]
[null,null,null,null,null,null,null,null,null,0,0,0,0]
[null,null,null,null,null,null,null,null,null,0,0,0,0]
[null,null,null,null,null,null,null,null,null,0,0,0,0]
[null,null,null,null,null,null,null,null,null,0,0,0,0]
[null,null,null,null,null,null,null,null,null,0,0,0,0]
[null,null,null,null,null,null,null,null,null,0,0,0,0]
[null,null,null,null,null,null,null,null,null,0,0,0,0]
[null,null,null,null,null,null,null,null,null,0,0,0,0]
[null,null,null,null,null,null,null,null,null,0,0,0,0]
[null,null,null,null,null,null,null,null,null,0,0,0,0]
[null,null,null,null,null,null,null,null,null,0,0,0,0]
[null,null,null,null,null,null,null,null,null,0,0,0,0]
[null,null,null,null,null,null,null,null,null,0,0,0,0]
[null,null,null,null,null,null,null,null,null,0,0,0,0]
[null,null,null,null,null,null,null,null,null,0,0,0,0]
[null,null,null,null,null,null,null,null,null,0,0,0,0]
[null,null,null,null,null,null,null,null,null,0,0,0,0]
[null,null,null,null,null,null,null,null,null,0,0,0,0]
[null,null,null,null,null,null,null,null,null,0,0,0,0]
[null,null,null,null,null,null,null,null,null,0,0,0,0]
[null,null,null,null,null,null,null,null,null,0,0,0,0]
[null,null,null,null,null,null,null,null,null,0,0,0,0]
[null,null,null,null,null,null,null,null,null,0,0,0,0]
[null,null,null,null,null,null,null,null,null,0,0,0,0]
[null,null,null,null,null,null,null,null,null,0,0,0,0]
[null,null,null,null,null,null,null,null,null,0,0,0,0]
[null,null,null,null,null,null,null,null,null,0,0,0,0]
[null,null,null,null,null,null,null,null,null,0,0,0,0]
[null,null,null,null,null,null,null,null,null,0,0,0,0]
[null,null,null,null,null,null,null,null,null,0,0,0,0]
[null,null,null,null,null,null,null,null,null,0,0,0,0]
[null,null,null,null,null,null,null,null,null,0,0,0,0]
[null,null,null,null,null,null,null,null,null,0,0,-6.9677199999999999,0]
[null,null,null,null,null,null,null,null,null,0,0,0,0]
[null,null,null,null,null,null,null,null,null,0,0,0,0]
[null,null,null,null,null,null,null,null,null,0,0,0,0]
[null,null,null,null,null,null,null,null,null,0,0,0,0]
[null,null,null,null,null,null,null,null,null,0,0,-2.9745900000000001,0]
[null,null,null,null,null,null,null,null,null,0,0,0,0]
[null,null,null,null,null,null,null,null,null,0,0,0,0]
[null,null,null,null,null,null,null,null,null,0,0,0,0]
[null,null,null,null,null,null,null,null,null,0,0,0,0]
[null,null,null,null,null,null,null,null,null,0,0,0,0]
[null,null,null,null,null,null,null,null,null,0,0,0,0]
[null,null,null,null,null,null,null,null,null,0,0,0,0]
[null,null,null,null,null,null,null,null,null,0,0,0,0]
[null,null,null,null,null,null,null,null,null,0,0,0,0]
[null,null,null,null,null,null,null,null,null,0,0,0,0]
[null,null,null,null,null,null,null,null,null,0,0,0,0]
[null,null,null,null,null,null,null,null,null,0,0,0,0]
[null,null,null,null,null,null,null,null,null,0,0,0,0]
[null,null,null,null,null,null,null,null,null,0,0,0,0]
[null,null,null,null,null,null,null,null,null,0,0,0,0]
[null,null,null,null,null,null,null,null,null,0,0,0,-0.35189599999999999]
[null,null,null,null,null,null,null,null,null,0,0,0,0]
[null,null,null,null,null,null,null,null,null,0,0,0,-0.56875600000000004]
[null,null,null,null,null,null,null,null,null,0,0,0,0]
[null,null,null,null,null,null,null,null,null,0,0,0,0]
[null,null,null,null,null,null,null,null,null,0,0,0,0]
[null,null,null,null,null,null,null,null,null,0,0,0,0]
[null,null,null,null,null,null,null,null,null,0,0,0,0]
[null,null,null,null,null,null,null,null,null,0,0,0,0]
[null,null,null,null,null,null,null,null,null,0,0,-4.7166800000000002,0]
[null,null,null,null,null,null,null,null,null,0,0,0,0]
[null,null,null,null,null,null,null,null,null,0,0,0,0]
[null,null,null,null,null,null,null,null,null,0,0,0,0]
[null,null,null,null,null,null,null,null,null,0,0,0,0]
[null,null,null,null,null,null,null,null,null,0,0,0,0]
[null,null,null,null,null,null,null,null,null,0,0,0,0]
[null,null,null,null,null,null,null,null,null,0,0,0,0]
[null,null,null,null,null,null,null,null,null,0,0,0,0]
[null,null,null,null,null,null,null,null,null,0,0,0,0]

{"sheet":"Model","index":3,"n_rows":29,"n_cols":9,"rows_kept":29,"cut":false,"hidden":false,"merged":[]}
[]
[]
[]
[]
[]
[null,"Inputs"]
[null,"Min budget",{"$f":"SUMPRODUCT(Projects!C8:C1048576,(Projects!D8:D1048576>0))","v":0}]
[null,"Budget",500]
[]
[null,"Connectivity wts","Raw","Normalized"]
[null,"Diadromous",1,{"$f":"C11/$C$13","v":1}]
[null,"Potadromous",0,{"$f":"C12/$C$13","v":0}]
[null,"Total",{"$f":"SUM(C11:C12)","v":1},{"$f":"SUM(D11:D12)","v":1}]
[]
[null,"Constraints","Current","Target","Include?"]
[null,"Hydropower (kW)",{"$f":"SUM('Barrier Data'!F9:F1048576)","v":0},0,null,null,null,false,{"$f":"IF(H16,D16,0)","v":0}]
[null,"Water storage (ML)",{"$f":"SUM('Barrier Data'!G8:G1048576)","v":0},0,null,null,null,false,{"$f":"IF(H17,D17,0)","v":0}]
[]
[null,"KPIs"]
[null,"Total wt habitat:",9.2200000000000006,null,null,null,null,"Errors"]
[null,"Total hydropower (kW)",{"$f":"SUM(hp)","v":0},null,null,null,null,"Barriers",{"$f":"SUM('Barrier Data'!R8:R1048576)","v":0}]
[null,"Total water storage (ML)",{"$f":"SUM(ws)","v":0},null,null,null,null,"Projects",{"$f":"SUM(Projects!P8:P1048576)","v":0}]
[]
[null,"Solution"]
[null,"BARID","DESCRIPTION","HPOWER","WSTORE"]
[null,"A","Remove"]
[null,"B","Remove"]
[null,"C","Remove"]
[null,"F","Remove"]